Workbook

Sheet ТИТУЛ
A1: Муниципальное автономное дошкольное образовательное учреждение
A2: детский сад комбинированного вида №24 "Березка" г. Белебея
A3: муниципального района Белебеевский район Республики Башкортостан
A10: Диагностика индивидуального развития детей 3-4 лет
C13: 20__-20___ учебный год
B15: В соответствии с Федеральной образовательной программой дошкольного образования
B16: Приказ Министерства просвещения РФ от 25.11.2022г.
A22: Педагоги:
A24: Воспитатель:
A25: Воспитатель:
A26: Музыкальный руководитель:
A42: Планируемые образовательные результаты к четырем годам:
A45: ребенок демонстрирует положительное отношение к разнообразным физическим упражнениям, проявляет избирательный интерес к отдельным двигательным действиям (бросание и ловля, ходьба, бег, прыжки) и подвижным играм;
A47: ребенок проявляет элементы самостоятельности в двигательной деятельности, с интересом включается в подвижные игры, стремится к выполнению правил и основных ролей в игре, выполняет простейшие правила построения и перестроения, выполняет ритмические движения под музыку;
A49: ребенок демонстрирует достаточную координацию движений при выполнении упражнений, сохраняет равновесие при ходьбе, беге, прыжках, способен реагировать на сигналы, переключаться с одного движения на другое, выполнять движения в общем для всех темпе;
A51: ребенок владеет культурно-гигиенические навыки: умывание, одевание и т.п., соблюдает требования гигиены, имеет первичные представления о факторах, положительно влияющих на здоровье;
A53: ребенок проявляет доверие к миру, положительно оценивает себя, говорит о себе в первом лице;
A55: ребенок откликается эмоционально на ярко выраженное состояние близких и сверстников по показу и побуждению взрослых; дружелюбно настроен, спокойно играет рядом с детьми;
A57: ребенок владеет элементарными нормами и правилами поведения, связанными с определенными разрешениями и запретами («можно», «нельзя»), демонстрирует стремление к положительным поступкам;
A59: ребенок включается охотно в совместную деятельность со взрослым, подражает его действиям, отвечает на вопросы взрослого и комментирует его действия в процессе совместной деятельности;
A61: ребенок демонстрирует интерес к сверстникам, к взаимодействию в игре, в повседневном общении и бытовой деятельности, владеет элементарными средствами общения в процессе взаимодействия со сверстниками;
A63: ребенок владеет игровыми действиями с игрушками и предметами-заместителями, разворачивает игровой сюжет из нескольких эпизодов;
A65: ребенок проявляет интерес к правилам безопасного поведения; осваивает безопасные способы обращения со знакомыми предметами ближайшего окружения;
A67: ребенок принимает участие в несложной совместной познавательной деятельности, принимает цель и основные задачи деятельности, образец и инструкцию взрослого, стремится завершить начатое действие;
A69: ребенок демонстрирует познавательную активность в деятельности, проявляет эмоции удивления в процессе познания, отражает в общении и совместной деятельности со взрослыми и сверстниками, полученные представления о предметах и объектах ближайшего окружения, задает вопросы констатирующего характера;
A71: ребенок проявляет интерес к миру, потребность в познавательном общении со взрослыми; демонстрирует стремление к наблюдению, сравнению, обследованию свойств и качеств предметов, к простейшему экспериментированию;
A73: ребенок демонстрирует умения вступать в речевое общение со знакомыми взрослыми: понимает обращенную к нему речь, отвечает на вопросы, используя простые распространенные предложения; проявляет речевую активность в общении со сверстником; здоровается и прощается с воспитателем и детьми, благодарит за обед, выражает просьбу, узнает содержание прослушанных произведений по иллюстрациям, эмоционально откликается; совместно со взрослым пересказывает знакомые сказки, читает короткие стихи.

Sheet ОГЛАВЛЕНИЕ
B1: ОГЛАВЛЕНИЕ:
B2: Кликнув мышкой по соответствующему названию, вы автоматически перейдете в нужный раздел.
A4: наименование вкладки | B4: ТИТУЛЬНЫЙ ЛИСТ
A5: Образовательная область "Социально-коммуникативное развитие"
A6: СК-1 | B6: НАПРАВЛЕНИЕ 1,2. СОЦИАЛЬНЫЕ ОТНОШЕНИЯ. ФОРМИРОВАНИЕ ОСНОВ ГРАЖДАНСТВЕННОСТИ И ПАТРИОТИЗМА
A8: СК-2 | B8: НАПРАВЛЕНИЕ 3. ТРУДОВОЕ ВОСПИТАНИЕ
B9: НАПРАВЛЕНИЕ 4. ФОРМИРОВАНИЕ ОСНОВ БЕЗОПАСНОГО ПОВЕДЕНИЯ
A10: ИТОГ СК | B10: Обобщение результатов педагогической диагностики по направлениям ОО "Социально-коммуникативное развитие"
A11: Образовательная область "Познавательное развитие"
A12: ПР-1 | B12: НАПРАВЛЕНИЕ 1. СЕНСОРНЫЕ ЭТАЛОНЫ И ПОЗНАВАТЕЛЬНЫЕ ДЕЙСТВИЯ.
A13: ПР-2 | B13: НАПРАВЛЕНИЕ 2. МАТЕМАТИЧЕСКИЕ ПРЕДСТАВЛЕНИЯ
A14: ПР-3 | B14: НАПРАВЛЕНИЕ 3. ОКРУЖАЮЩИЙ МИР. ПРИРОДА
A15: ИТОГ -ПР | B15: Обобщение результатов педагогической диагностики по направлениям ОО "Познавательное развитие"
A16: Образовательная область "Речевое развитие"
A17: РР-1 | B17: НАПРАВЛЕНИЕ I. ФОРМИРОВАНИЕ СЛОВАРЯ
B18: НАПРАВЛЕНИЕ 2. ЗВУКОВАЯ КУЛЬТУРА РЕЧИ.
A19: РР-2 | B19: НАПРАВЛЕНИЕ 3. ГРАММАТИЧЕСКИЙ СТРОЙ РЕЧИ.
A20: РР-3 | B20: НАПРАВЛЕНИЕ 4. СВЯЗНАЯ РЕЧЬ
A21: РР-4 | B21: НАПРАВЛЕНИЕ 5. ПОДГОТОВКА К ОБУЧЕНИЮ ГРАМОТЕ
B22: НАПРАВЛЕНИЕ 6. ИНТЕРЕС К ХУДОЖЕСТВЕННОЙ ЛИТЕРАТУРЕ
A23: ИТОГ РР | B23: Обобщение результатов педагогической диагностики по направлениям ОО "Речевое развитие"
A24: Образовательная область "Художественно-эстетическое развитие"
A25: ХЭ-1 | B25: НАПРАВЛЕНИЕ I. ПРИОБЩЕНИЕ К ИСКУССТВУ
B26: НАПРАВЛЕНИЕ 2. ИЗОБРАЗИТЕЛЬНАЯ ДЕЯТЕЛЬНОСТЬ
A27: ХЭ-2 | B27: НАПРАВЛЕНИЕ 3. КОНСТРУКТИВНАЯ ДЕЯТЕЛЬНОСТЬ
A28: ХЭ-3 | B28: НАПРАВЛЕНИЕ 4. МУЗЫКАЛЬНАЯ ДЕЯТЕЛЬНОСТЬ
A29: ХЭ-4 | B29: НАПРАВЛЕНИЕ 5. ТЕАТРАЛИЗОВАННАЯ И КУЛЬТУРНО-ДОСУГОВАЯ ДЕЯТЕЛЬНОСТЬ
A30: ИТОГ ХЭ | B30: Обобщение результатов педагогической диагностики по направлениям ОО "Художественно-эстетическое развитие"
A31: Образовательная область "Физическое развитие"
A32: ФР-1 | B32: НАПРАВЛЕНИЕ I. ОСНОВНАЯ ГИМНАСТИКА. ПОДВИЖНЫЕ И СПОРТИВНЫЕ ИГРЫ. СПОРТИВНЫЕ УПРАЖНЕНИЯ
B33: НАПРАВЛЕНИЕ 2. ФОРМИРОВАНИЕ ОСНОВ ЗДОРОВОГО ОБРАЗА ЖИЗНИ. АКТИВНЫЙ ОТДЫХ
A34: ИТОГ ФР | B34: Обобщение результатов педагогической диагностики по направлениям ОО «Физическое развитие»
A36: ОБЩИЙ ИТОГ | B36: Обобщение результатов педагогической диагностики по всем образовательным областям

Sheet СК-1
A1: Образовательная область «Социально-коммуникативное развитие»
A2: НАПРАВЛЕНИЕ 1. СОЦИАЛЬНЫЕ ОТНОШЕНИЯ. НАПРАВЛЕНИЕ 2. ФОРМИРОВАНИЕ ОСНОВ ГРАЖДАНСТВЕННОСТИ И ПАТРИОТИЗМА
A3: №п/п | B3: ОГЛАВЛЕНИЕ | C3: Умеет называть свое имя, возраст. Говорит о себе в первом лице. | E3: Различает и понимает ярко выраженные эмоции (радость, печаль, грусть, гнев, страх, удивление) | G3: Имитирует мимику, движения, интонацию героев литературных произведений | I3: Имеет представление о действиях, в которых проявляются доброе отношение и забота о членах семьи, близком окружении, животных, растениях | K3: Устанавливает положительные контакты между сверстниками, основанных на общих интересах к действиям с игрушками, предметами и взаимной симпатии | M3: Старается соблюдать правила поведения в общественных местах, в общении со взрослыми и сверстниками | O3: Выполняет элементарные правила культуры поведения в ДОО | Q3: среднее значение | S3: Знает название населенного пункта, в котором живет | U3: Имеет представление о малой родине | W3: Может назвать некоторые достопримечательности родного города (поселка) | Y3: среднее значение
B4: ФИ ребенка
C5: н.г. | D5: к.г. | E5: н.г. | F5: к.г. | G5: н.г. | H5: к.г. | I5: н.г. | J5: к.г. | K5: н.г. | L5: к.г. | M5: н.г. | N5: к.г. | O5: н.г. | P5: к.г. | Q5: н.г. | R5: к.г. | S5: н.г. | T5: к.г. | U5: н.г. | V5: к.г. | W5: н.г. | X5: к.г. | Y5: н.г. | Z5: к.г.
A6: 1 | B6: Иванов | C6: 2 | D6: 3 | E6: 2 | F6: 3 | G6: 2 | H6: 3 | I6: 2 | J6: 3 | K6: 2 | L6: 3 | M6: 2 | N6: 3 | O6: 3 | P6: 4 | Q6: =(C6+E6+G6+I6+K6+M6+O6)/7 -> 2.14 | R6: =(D6+F6+H6+J6+L6+N6+P6)/7 -> 3.14 | S6: 2 | T6: 3 | U6: 2 | V6: 3 | W6: 3 | X6: 4 | Y6: =(S6+U6+W6)/3 -> 2.33 | Z6: =(T6+V6+X6)/3 -> 3.33
A7: 2 | B7: Петров | Q7: =(C7+E7+G7+I7+K7+M7+O7)/7 -> 0.00 | R7: =(D7+F7+H7+J7+L7+N7+P7)/7 -> 0.00 | Y7: =(S7+U7+W7)/3 -> 0.00 | Z7: =(T7+V7+X7)/3 -> 0.00
A8: 3 | B8: Сидоров | Q8: 0.00 | R8: 0.00 | Y8: 0.00 | Z8: 0.00
A9: 4 | Q9: 0.00 | R9: 0.00 | Y9: 0.00 | Z9: 0.00
A10: 5 | Q10: 0.00 | R10: 0.00 | Y10: 0.00 | Z10: 0.00
A11: 6 | Q11: 0.00 | R11: 0.00 | Y11: 0.00 | Z11: 0.00
A12: 7 | Q12: 0.00 | R12: 0.00 | Y12: 0.00 | Z12: 0.00
A13: 8 | Q13: 0.00 | R13: 0.00 | Y13: 0.00 | Z13: 0.00
A14: 9 | Q14: 0.00 | R14: 0.00 | Y14: 0.00 | Z14: 0.00
A15: 10 | Q15: 0.00 | R15: 0.00 | Y15: 0.00 | Z15: 0.00
A16: 11 | Q16: 0.00 | R16: 0.00 | Y16: 0.00 | Z16: 0.00
A17: 12 | Q17: 0.00 | R17: 0.00 | Y17: 0.00 | Z17: 0.00
A18: 13 | Q18: 0.00 | R18: 0.00 | Y18: 0.00 | Z18: 0.00
A19: 14 | Q19: 0.00 | R19: 0.00 | Y19: 0.00 | Z19: 0.00
A20: 15 | Q20: 0.00 | R20: 0.00 | Y20: 0.00 | Z20: 0.00
A21: 16 | Q21: 0.00 | R21: 0.00 | Y21: 0.00 | Z21: 0.00
A22: 17 | Q22: 0.00 | R22: 0.00 | Y22: 0.00 | Z22: 0.00
A23: 18 | Q23: 0.00 | R23: 0.00 | Y23: 0.00 | Z23: 0.00
A24: 19 | Q24: 0.00 | R24: 0.00 | Y24: 0.00 | Z24: 0.00
A25: 20 | Q25: 0.00 | R25: 0.00 | Y25: 0.00 | Z25: 0.00
A26: 21 | Q26: 0.00 | R26: 0.00 | Y26: 0.00 | Z26: 0.00
A27: 22 | Q27: 0.00 | R27: 0.00 | Y27: 0.00 | Z27: 0.00
A28: 23 | Q28: 0.00 | R28: 0.00 | Y28: 0.00 | Z28: 0.00
A29: 24 | Q29: 0.00 | R29: 0.00 | Y29: 0.00 | Z29: 0.00
B30: среднее значение: | C30: =(C6+C7+C8+C9+C10+C11+C12+C13+C14+C15+C16+C17+C18+C19+C20+C21+C22+C23+C24+C25+C26+C27+C28+C29)/COUNTA($B$6:$B$29) -> 0.67 | D30: =(D6+D7+D8+D9+D10+D11+D12+D13+D14+D15+D16+D17+D18+D19+D20+D21+D22+D23+D24+D25+D26+D27+D28+D29)/COUNTA($B$6:$B$29) -> 1.00 | E30: 0.67 | F30: 1.00 | G30: 0.67 | H30: 1.00 | I30: 0.67 | J30: 1.00 | K30: 0.67 | L30: 1.00 | M30: 0.67 | N30: 1.00 | O30: 1.00 | P30: 1.33 | Q30: 0.71 | R30: 1.05 | S30: =(S6+S7+S8+S9+S10+S11+S12+S13+S14+S15+S16+S17+S18+S19+S20+S21+S22+S23+S24+S25+S26+S27+S28+S29)/COUNTA($B$6:$B$29) -> 0.67 | T30: 1.00 | U30: 0.67 | V30: 1.00 | W30: 1.00 | X30: 1.33 | Y30: 0.78 | Z30: 1.11
B31: начало года | G31: начало года
C32: всего | D32: норма | E32: ниже нормы | F32: низкий | H32: всего | I32: норма | J32: ниже нормы | K32: низкий
B34: количество детей | C34: =COUNTA($B$6:$B$29) -> 3 | D34: =COUNTIF(Q6:Q29,">=3,8") -> 0 | E34: =COUNTIFS(Q6:Q29,"<3,7",Q6:Q29,">=2,3") -> 0 | F34: =COUNTIFS(Q6:Q29,"<2,2",Q6:Q29,">0") -> 1 | G34: кол-во детей | H34: =COUNTA($B$6:$B$29) -> 3 | I34: =COUNTIF(Y6:Y29,">=3,8") -> 0 | J34: =COUNTIFS(Z6:Z29,"<3,7",Z6:Z29,">=2,3") -> 1 | K34: =COUNTIFS(Y6:Y29,"<2,2",Y6:Y29,">0") -> 0
B35: % | C35: 100 | D35: =D34*C35/C34 -> 0 | E35: =E34*C35/C34 -> 0.0 | F35: =F34*C35/C34 -> 33.3 | G35: % | H35: 100 | I35: =I34*H35/H34 -> 0 | J35: =J34*H35/H34 -> 33.3 | K35: =K34*H35/H34 -> 0.0
B37: конец года | G37: конец года
C38: всего | D38: норма | E38: ниже нормы | F38: низкий | H38: всего | I38: норма | J38: ниже нормы | K38: низкий
B40: количество детей | C40: =COUNTA($B$6:$B$29) -> 3 | D40: =COUNTIF(Z6:Z29,">=3,8") -> 0 | E40: =COUNTIFS(Z6:Z29,"<3,7",Z6:Z29,">=2,3") -> 1 | F40: =COUNTIFS(Z6:Z29,"<2,2",Z6:Z29,">0") -> 0 | G40: кол-во детей | H40: =COUNTA($B$6:$B$29) -> 3 | I40: =COUNTIF(Z6:Z29,">=3,8") -> 0 | J40: =COUNTIFS(Z6:Z29,"<3,7",Z6:Z29,">=2,3") -> 1 | K40: =COUNTIFS(Z6:Z29,"<2,2",Z6:Z29,">0") -> 0
B41: % | C41: 100 | D41: =D40*C41/C40 -> 0.0 | E41: =E40*C41/C40 -> 33.3 | F41: =F40*C41/C40 -> 0.0 | G41: % | H41: 100 | I41: =I40*H41/H40 -> 0.0 | J41: =J40*H41/H40 -> 33.3 | K41: =K40*H41/H40 -> 0.0

Sheet СК-2
A1: НАПРАВЛЕНИЕ 3. ТРУДОВОЕ ВОСПИТАНИЕ | F1: ОГЛАВЛЕНИЕ | J1: НАПРАВЛЕНИЕ 4. ФОРМИРОВАНИЕ ОСНОВ БЕЗОПАСНОСНОГО ПОВЕДЕНИЯ
A3: №п/п | B3: ФИ ребенка | C3: Имеет представления о видах хозяйственно-бытового труда (мытье посуды, уборка помещений) | E3: Березно относится к предметам и игрушкам как результатам труда взрослых | G3: Умеет одеваться, раздеваться, умываться самостоятельно | I3: среднее значение | K3: Проявляет интерес к правилам безопасного поведения в быту | M3: Старается соблюдать правила поведения в группе, в общественных местах, в природе | O3: Знает почему нельзя пользования самостоятельно бытовыми приборами (ножи, иголки, ножницы, лекартсва, спички) | Q3: Знает и соблюдает правила дорожного движения и поведения на улице | S3: среднее значение
C5: н.г. | D5: к.г. | E5: н.г. | F5: к.г. | G5: н.г. | H5: к.г. | I5: н.г. | J5: к.г. | K5: н.г. | L5: к.г. | M5: н.г. | N5: к.г. | O5: н.г. | P5: к.г. | Q5: н.г. | R5: к.г. | S5: н.г. | T5: к.г.
A6: 1 | B6: Иванов | C6: 3 | D6: 4 | E6: 3 | F6: 4 | G6: 2 | H6: 3 | I6: =(C6+E6+G6)/3 -> 2.67 | J6: =(D6+F6+H6)/3 -> 3.67 | K6: 2 | L6: 3 | M6: 2 | N6: 3 | O6: 3 | P6: 4 | Q6: 3 | R6: 4 | S6: =(K6+M6+O6+Q6)/4 -> 2.50 | T6: =(L6+N6+P6+R6)/4 -> 3.50
A7: 2 | B7: Петров | I7: =(C7+E7+G7)/3 -> 0.00 | J7: =(D7+F7+H7)/3 -> 0.00 | S7: =(K7+M7+O7+Q7)/4 -> 0.00 | T7: =(L7+N7+P7+R7)/4 -> 0.00
A8: 3 | B8: Сидоров | I8: 0.00 | J8: 0.00 | S8: 0.00 | T8: 0.00
A9: 4 | I9: 0.00 | J9: 0.00 | S9: 0.00 | T9: 0.00
A10: 5 | I10: 0.00 | J10: 0.00 | S10: 0.00 | T10: 0.00
A11: 6 | I11: 0.00 | J11: 0.00 | S11: 0.00 | T11: 0.00
A12: 7 | I12: 0.00 | J12: 0.00 | S12: 0.00 | T12: 0.00
A13: 8 | I13: 0.00 | J13: 0.00 | S13: 0.00 | T13: 0.00
A14: 9 | I14: 0.00 | J14: 0.00 | S14: 0.00 | T14: 0.00
A15: 10 | I15: 0.00 | J15: 0.00 | S15: 0.00 | T15: 0.00
A16: 11 | I16: 0.00 | J16: 0.00 | S16: 0.00 | T16: 0.00
A17: 12 | I17: 0.00 | J17: 0.00 | S17: 0.00 | T17: 0.00
A18: 13 | I18: 0.00 | J18: 0.00 | S18: 0.00 | T18: 0.00
A19: 14 | I19: 0.00 | J19: 0.00 | S19: 0.00 | T19: 0.00
A20: 15 | I20: 0.00 | J20: 0.00 | S20: 0.00 | T20: 0.00
A21: 16 | I21: 0.00 | J21: 0.00 | S21: 0.00 | T21: 0.00
A22: 17 | I22: 0.00 | J22: 0.00 | S22: 0.00 | T22: 0.00
A23: 18 | I23: 0.00 | J23: 0.00 | S23: 0.00 | T23: 0.00
A24: 19 | I24: 0.00 | J24: 0.00 | S24: 0.00 | T24: 0.00
A25: 20 | I25: 0.00 | J25: 0.00 | S25: 0.00 | T25: 0.00
A26: 21 | I26: 0.00 | J26: 0.00 | S26: 0.00 | T26: 0.00
A27: 22 | I27: 0.00 | J27: 0.00 | S27: 0.00 | T27: 0.00
A28: 23 | I28: 0.00 | J28: 0.00 | S28: 0.00 | T28: 0.00
A29: 24 | I29: 0.00 | J29: 0.00 | S29: 0.00 | T29: 0.00
B30: среднее значение: | C30: =(C6+C7+C8+C9+C10+C11+C12+C13+C14+C15+C16+C17+C18+C19+C20+C21+C22+C23+C24+C25+C26+C27+C28+C29)/COUNTA($B$8:$B$30) -> 1.50 | D30: 2.00 | E30: 1.50 | F30: 2.00 | G30: 1.00 | H30: 1.50 | I30: 1.33 | J30: 1.83 | K30: =(K6+K7+K8+K9+K10+K11+K12+K13+K14+K15+K16+K17+K18+K19+K20+K21+K22+K23+K24+K25+K26+K27+K28+K29)/COUNTA($B$6:$B$29) -> 0.67 | L30: =(L6+L7+L8+L9+L10+L11+L12+L13+L14+L15+L16+L17+L18+L19+L20+L21+L22+L23+L24+L25+L26+L27+L28+L29)/COUNTA($B$6:$B$29) -> 1.00 | M30: 0.67 | N30: 1.00 | O30: 1.00 | P30: 1.33 | Q30: 1.00 | R30: 1.33 | S30: 0.83 | T30: 1.17
B31: начало года | K31: начало года
C32: всего | D32: норма | E32: ниже нормы | F32: низкий | N32: всего | O32: норма | P32: ниже нормы | Q32: низкий
B33: количество детей | C33: =COUNTA($B$6:$B$29) -> 3 | D33: =COUNTIF(I6:I29,">=3,8") -> 0 | E33: =COUNTIFS(I6:I29,"<3,7",I6:I29,">=2,3") -> 1 | F33: =COUNTIFS(I6:I29,"<2,2",I6:I29,">0") -> 0 | K33: количество детей | N33: =COUNTA(#REF!) -> 1 | O33: =COUNTIF(S6:S29,">=3,8") -> 0 | P33: =COUNTIFS(S6:S29,"<3,7",S6:S29,">=2,3") -> 1 | Q33: =COUNTIFS(S6:S29,"<2,2",S6:S29,">0") -> 0
B34: % | C34: 100 | D34: =D33*C34/C33 -> 0 | E34: =E33*C34/C33 -> 33.3 | F34: =F33*C34/C33 -> 0.0 | K34: % | N34: 100 | O34: =O33*N34/N33 -> 0 | P34: =P33*N34/N33 -> 100.0 | Q34: =Q33*N34/N33 -> 0.0
B35: конец года | K35: конец года
C36: всего | D36: норма | E36: ниже нормы | F36: низкий | N36: всего | O36: норма | P36: ниже нормы | Q36: низкий
B37: количество детей | C37: =COUNTA($B$6:$B$29) -> 3 | D37: =COUNTIF(J6:J29,">=3,8") -> 0 | E37: =COUNTIFS(J6:J29,"<3,7",J6:J29,">=2,3") -> 1 | F37: =COUNTIFS(J6:J29,"<2,2",J6:J29,">0") -> 0 | K37: количество детей | N37: =COUNTA(#REF!) -> 1 | O37: =COUNTIF(T6:T29,">=3,8") -> 0 | P37: =COUNTIFS(T6:T29,"<3,7",T6:T29,">=2,3") -> 1 | Q37: =COUNTIFS(T6:T29,"<2,2",T6:T29,">0") -> 0
B38: % | C38: 100 | D38: =D37*C38/C37 -> 0.0 | E38: =E37*C38/C37 -> 33.3 | F38: =F37*C38/C37 -> 0.0 | K38: % | N38: 100 | O38: =O37*N38/N37 -> 0.0 | P38: =P37*N38/N37 -> 100.0 | Q38: =Q37*N38/N37 -> 0.0

Sheet ИТОГ СК
A1: Обобщение результатов педагогической диагностики по направлениям ОО «Социально-коммуникативное развитие»
B3: ОГЛАВЛЕНИЕ | C3: Формирование общепринятых норм поведения | D3: Формирование основ гражданственности и патриотизма | E3: Трудовое воспитание | F3: Формирование основ безопасного поведения | G3: Средний балл/уровень (итоговый)
C4: 1 | D4: 2 | E4: 3 | F4: 4 | G4: ср.ур.
B5: начало | C5: ='СК-1'!Q30 -> 0.71 | D5: ='СК-1'!Y30 -> 0.78 | E5: ='СК-2'!I30 -> 1.33 | F5: ='СК-2'!S30 -> 0.83 | G5: =(C5+D5+E5+F5)/4 -> 0.91
B6: конец | C6: ='СК-1'!Z30 -> 1.11 | D6: ='СК-1'!Z30 -> 1.11 | E6: ='СК-2'!J30 -> 1.83 | F6: ='СК-2'!T30 -> 1.17 | G6: =(C6+D6+E6+F6)/4 -> 1.31
A36: ВЫВОДЫ:
A37: Начало учебного года:
A45: Конец учебного года:

Sheet ПР-1
A1: Образовательная область «Познавательное развитие»
A2: НАПРАВЛЕНИЕ 1. СЕНСОРНЫЕ ЭТАЛОНЫ И ПОЗНАВАТЕЛЬНЫЕ ДЕЙСТВИЯ. | K2: ОГЛАВЛЕНИЕ
A3: №п/п | B3: ФИ ребенка | C3: Различает и называет цвета (красный, синий, зеленый, желтый, белый, черный) | E3: Называет оттенки цветов (розовый, голубой, серый). | G3: Различает круг, квадрат, треугольник, предметы, имеющие углы и круглую форму | I3: Ориентируется в помещениях детского сада | K3: среднее значение
C5: н.г. | D5: к.г. | E5: н.г. | F5: к.г. | G5: н.г. | H5: к.г. | I5: н.г. | J5: к.г. | K5: н.г. | L5: к.г.
A6: 1 | B6: Иванов | C6: 2 | D6: 3 | E6: 2 | F6: 3 | G6: 4 | H6: 5 | I6: 3 | J6: 4 | K6: =(C6+E6+G6+I6)/4 -> 2.75 | L6: =(D6+F6+H6+J6)/4 -> 3.75
A7: 2 | B7: Петров | K7: =(C7+E7+G7+I7)/4 -> 0.00 | L7: =(D7+F7+H7+J7)/4 -> 0.00
A8: 3 | B8: Сидоров | K8: 0.00 | L8: 0.00
A9: 4 | K9: 0.00 | L9: 0.00
A10: 5 | K10: 0.00 | L10: 0.00
A11: 6 | K11: 0.00 | L11: 0.00
A12: 7 | K12: 0.00 | L12: 0.00
A13: 8 | K13: 0.00 | L13: 0.00
A14: 9 | K14: 0.00 | L14: 0.00
A15: 10 | K15: 0.00 | L15: 0.00
A16: 11 | K16: 0.00 | L16: 0.00
A17: 12 | K17: 0.00 | L17: 0.00
A18: 13 | K18: 0.00 | L18: 0.00
A19: 14 | K19: 0.00 | L19: 0.00
A20: 15 | K20: 0.00 | L20: 0.00
A21: 16 | K21: 0.00 | L21: 0.00
A22: 17 | K22: 0.00 | L22: 0.00
A23: 18 | K23: 0.00 | L23: 0.00
A24: 19 | K24: 0.00 | L24: 0.00
A25: 20 | K25: 0.00 | L25: 0.00
A26: 21 | K26: 0.00 | L26: 0.00
A27: 22 | K27: 0.00 | L27: 0.00
A28: 23 | K28: 0.00 | L28: 0.00
A29: 24 | K29: 0.00 | L29: 0.00
B30: среднее значение: | C30: =(C6+C7+C8+C9+C10+C11+C12+C13+C14+C15+C16+C17+C18+C19+C20+C21+C22+C23+C24+C25+C26+C27+C28+C29)/COUNTA($B$6:$B$29) -> 0.67 | D30: =(D6+D7+D8+D9+D10+D11+D12+D13+D14+D15+D16+D17+D18+D19+D20+D21+D22+D23+D24+D25+D26+D27+D28+D29)/COUNTA($B$6:$B$29) -> 1.00 | E30: 0.67 | F30: 1.00 | G30: 1.33 | H30: 1.67 | I30: 1.00 | J30: 1.33 | K30: 0.92 | L30: 1.25
B32: начало года
C33: всего | D33: норма | E33: ниже нормы | F33: низкий
B34: количество детей | C34: =COUNTA($B$6:$B$29) -> 3 | D34: =COUNTIF(K6:K29,">=3,8") -> 0 | E34: =COUNTIFS(K6:K29,"<3,7",K6:K29,">=2,3") -> 1 | F34: =COUNTIFS(K6:K29,"<2,2",K6:K29,">0") -> 0
B35: % | C35: 100 | D35: =D34*C35/C34 -> 0 | E35: =E34*C35/C34 -> 33.3 | F35: =F34*C35/C34 -> 0.0
B37: конец года
C38: всего | D38: норма | E38: ниже нормы | F38: низкий
B39: количество детей | C39: =COUNTA(B6:B29) -> 3 | D39: =COUNTIF(L6:L29,">=3,8") -> 0 | E39: =COUNTIFS(L6:L29,"<3,7",L6:L29,">=2,3") -> 0 | F39: =COUNTIFS(L6:L29,"<2,2",L6:L29,">0") -> 0
B40: % | C40: 100 | D40: =D39*C40/C39 -> 0.0 | E40: =E39*C40/C39 -> 0.0 | F40: =F39*C40/C39 -> 0.0

Sheet ПР-2
A1: НАПРАВЛЕНИЕ 2. МАТЕМАТИЧЕСКИЕ ПРЕДСТАВЛЕНИЯ. | K1: ОГЛАВЛЕНИЕ
A3: №п/п | B3: ФИ ребенка | C3: Правильно определяет количественное соотношение двух групп предметов, понимает конкретный смысл слов «больше», «меньше», «столько же» | E3: Ориентируется в пространстве от себя: впереди (сзади), сверху (снизу), справа (слева) | G3: Знает и называет геметрические фигуры: шар, куб, круг, квадрат, треугольник | I3: Понимает контрастные особенности утра и вечера, дня и ночи, зимы и лета | K3: Использует в речи слова, обохначающие свойства, качества предметов и отношений между ними | M3: среднее значение
C5: н.г. | D5: к.г. | E5: н.г. | F5: к.г. | G5: н.г. | H5: к.г. | I5: н.г. | J5: к.г. | K5: н.г. | L5: к.г. | M5: н.г. | N5: к.г.
A6: 1 | B6: Иванов | C6: 2 | D6: 3 | E6: 2 | F6: 3 | G6: 3 | H6: 4 | I6: 3 | J6: 4 | K6: 3 | L6: 4 | M6: =(C6+E6+G6+I6+K6)/5 -> 2.60 | N6: =(D6+F6+H6+J6+L6)/5 -> 3.60
A7: 2 | B7: Петров | C7: 3 | D7: 4 | E7: 3 | F7: 4 | G7: 2 | H7: 3 | I7: 2 | J7: 3 | K7: 4 | L7: 5 | M7: =(C7+E7+G7+I7+K7)/5 -> 2.80 | N7: =(D7+F7+H7+J7+L7)/5 -> 3.80
A8: 3 | B8: Сидоров | C8: 2 | D8: 3 | E8: 2 | F8: 3 | G8: 2 | H8: 3 | I8: 2 | J8: 3 | K8: 2 | L8: 3 | M8: 2.00 | N8: 3.00
A9: 4 | M9: 0.00 | N9: 0.00
A10: 5 | M10: 0.00 | N10: 0.00
A11: 6 | M11: 0.00 | N11: 0.00
A12: 7 | M12: 0.00 | N12: 0.00
A13: 8 | M13: 0.00 | N13: 0.00
A14: 9 | M14: 0.00 | N14: 0.00
A15: 10 | M15: 0.00 | N15: 0.00
A16: 11 | M16: 0.00 | N16: 0.00
A17: 12 | M17: 0.00 | N17: 0.00
A18: 13 | M18: 0.00 | N18: 0.00
A19: 14 | M19: 0.00 | N19: 0.00
A20: 15 | M20: 0.00 | N20: 0.00
A21: 16 | M21: 0.00 | N21: 0.00
A22: 17 | M22: 0.00 | N22: 0.00
A23: 18 | M23: 0.00 | N23: 0.00
A24: 19 | M24: 0.00 | N24: 0.00
A25: 20 | M25: 0.00 | N25: 0.00
A26: 21 | M26: 0.00 | N26: 0.00
A27: 22 | M27: 0.00 | N27: 0.00
A28: 23 | M28: 0.00 | N28: 0.00
A29: 24 | M29: 0.00 | N29: 0.00
B30: среднее значение: | C30: =(C6+C7+C8+C9+C10+C11+C12+C13+C14+C15+C16+C17+C18+C19+C20+C21+C22+C23+C24+C25+C26+C27+C28+C29)/COUNTA($B$6:$B$29) -> 2.33 | D30: =(D6+D7+D8+D9+D10+D11+D12+D13+D14+D15+D16+D17+D18+D19+D20+D21+D22+D23+D24+D25+D26+D27+D28+D29)/COUNTA($B$6:$B$29) -> 3.33 | E30: 2.33 | F30: 3.33 | G30: 2.33 | H30: 3.33 | I30: 2.33 | J30: 3.33 | K30: 3.00 | L30: 4.00 | M30: 2.47 | N30: 3.47
B32: начало года
C33: всего | D33: норма | E33: ниже нормы | F33: низкий
B34: количество детей | C34: =COUNTA($B$6:$B$29) -> 3 | D34: =COUNTIF(M6:M29,">=3,8") -> 0 | E34: =COUNTIFS(M6:M29,"<3,7",M6:M29,">=2,3") -> 2 | F34: =COUNTIFS(M6:M29,"<2,2",M6:M29,">0") -> 1
B35: % | C35: 100 | D35: =D34*C35/C34 -> 0.0 | E35: =E34*C35/C34 -> 66.7 | F35: =F34*C35/C34 -> 33.3
B37: конец года
C38: всего | D38: норма | E38: ниже нормы | F38: низкий
B39: количество детей | C39: =COUNTA(B6:B29) -> 3 | D39: =COUNTIF(N6:N29,">=3,8") -> 1 | E39: =COUNTIFS(N6:N29,"<3,7",N6:N29,">=2,3") -> 2 | F39: =COUNTIFS(N6:N29,"<2,2",N6:N29,">0") -> 0
B40: % | C40: 100 | D40: =D39*C40/C39 -> 33.3 | E40: =E39*C40/C39 -> 66.7 | F40: =F39*C40/C39 -> 0.0

Sheet ПР-3
A1: НАПРАВЛЕНИЕ 3. ОКРУЖАЮЩИЙ МИР. ПРИРОДА. | O1: ОГЛАВЛЕНИЕ
A3: №п/п | B3: ФИ ребенка | C3: Сформированы начальные представления и эмоционально положительное отношение к родителям и членам семьи | E3: Умеет благодарить за подарки | G3: Оказывает посильную помощь родным, приобщается к традициям семьи | I3: Знает и называет некоторые растения и животных, их детёнышей, игрушки | K3: Знает некоторые овощи и фрукты и их вкусовые качества (морковь, репка, яблоко, банан, апельсин) | M3: Знает правила поведения в природе (не ломать ветки, не рвать растения, быть осторожными с животными) | O3: Выделяет признаки времен года по состоянию листвы на деревьях, почвенному покрову | Q3: среднее значение
C5: н.г. | D5: к.г. | E5: н.г. | F5: к.г. | G5: н.г. | H5: к.г. | I5: н.г. | J5: к.г. | K5: н.г. | L5: к.г. | M5: н.г. | N5: к.г. | O5: н.г. | P5: к.г. | Q5: н.г. | R5: к.г.
A6: 1 | B6: Иванов | C6: 2 | D6: 3 | E6: 2 | F6: 3 | G6: 4 | H6: 5 | I6: 3 | J6: 4 | K6: 3 | L6: 4 | M6: 3 | N6: 4 | O6: 3 | P6: 4 | Q6: =(C6+E6+G6+I6+K6+M6+O6)/7 -> 2.86 | R6: =(D6+F6+H6+J6+L6+N6+P6)/7 -> 3.86
A7: 2 | B7: Петров | Q7: =(C7+E7+G7+I7+K7+M7+O7)/7 -> 0.00 | R7: =(D7+F7+H7+J7+L7+N7+P7)/7 -> 0.00
A8: 3 | B8: Сидоров | Q8: 0.00 | R8: 0.00
A9: 4 | Q9: 0.00 | R9: 0.00
A10: 5 | Q10: 0.00 | R10: 0.00
A11: 6 | Q11: 0.00 | R11: 0.00
A12: 7 | Q12: 0.00 | R12: 0.00
A13: 8 | Q13: 0.00 | R13: 0.00
A14: 9 | Q14: 0.00 | R14: 0.00
A15: 10 | Q15: 0.00 | R15: 0.00
A16: 11 | Q16: 0.00 | R16: 0.00
A17: 12 | Q17: 0.00 | R17: 0.00
A18: 13 | Q18: 0.00 | R18: 0.00
A19: 14 | Q19: 0.00 | R19: 0.00
A20: 15 | Q20: 0.00 | R20: 0.00
A21: 16 | Q21: 0.00 | R21: 0.00
A22: 17 | Q22: 0.00 | R22: 0.00
A23: 18 | Q23: 0.00 | R23: 0.00
A24: 19 | Q24: 0.00 | R24: 0.00
A25: 20 | Q25: 0.00 | R25: 0.00
A26: 21 | Q26: 0.00 | R26: 0.00
A27: 22 | Q27: 0.00 | R27: 0.00
A28: 23 | Q28: 0.00 | R28: 0.00
A29: 24 | Q29: 0.00 | R29: 0.00
B30: среднее значение: | C30: =(C6+C7+C8+C9+C10+C11+C12+C13+C14+C15+C16+C17+C18+C19+C20+C21+C22+C23+C24+C25+C26+C27+C28+C29)/COUNTA($B$6:$B$29) -> 0.67 | D30: =(D6+D7+D8+D9+D10+D11+D12+D13+D14+D15+D16+D17+D18+D19+D20+D21+D22+D23+D24+D25+D26+D27+D28+D29)/COUNTA($B$6:$B$29) -> 1.00 | E30: 0.67 | F30: 1.00 | G30: 1.33 | H30: 1.67 | I30: 1.00 | J30: 1.33 | K30: 1.00 | L30: 1.33 | M30: 1.00 | N30: 1.33 | O30: 1.00 | P30: 1.33 | Q30: 0.95 | R30: 1.29
B32: начало года
C33: всего | D33: норма | E33: ниже нормы | F33: низкий
B34: количество детей | C34: =COUNTA($B$6:$B$29) -> 3 | D34: =COUNTIF(Q6:Q29,">=3,8") -> 0 | E34: =COUNTIFS(Q6:Q29,"<3,7",Q6:Q29,">=2,3") -> 1 | F34: =COUNTIFS(Q6:Q29,"<2,2",Q6:Q29,">0") -> 0
B35: % | C35: 100 | D35: =D34*C35/C34 -> 0 | E35: =E34*C35/C34 -> 33.3 | F35: =F34*C35/C34 -> 0.0
B37: конец года
C38: всего | D38: норма | E38: ниже нормы | F38: низкий
B39: количество детей | C39: =COUNTA(B6:B29) -> 3 | D39: =COUNTIF(R6:R29,">=3,8") -> 1 | E39: =COUNTIFS(R6:R29,"<3,7",R6:R29,">=2,3") -> 0 | F39: =COUNTIFS(R6:R29,"<2,2",R6:R29,">0") -> 0
B40: % | C40: 100 | D40: =D39*C40/C39 -> 33.3 | E40: =E39*C40/C39 -> 0.0 | F40: =F39*C40/C39 -> 0.0

Sheet ИТОГ ПР
A1: Обобщение результатов педагогической диагностики по направлениям ОО «Познавательное развитие»
B3: ОГЛАВЛЕНИЕ | C3: Сенсорные эталоны и познавательные действия | D3: Математические представления | E3: Окружающий мир. Природа | F3: Средний уровень развития
C4: 1 | D4: 2 | E4: 3 | F4: ср.ур.
B5: начало | C5: ='ПР-1'!K30 -> 0.92 | D5: ='ПР-2'!M30 -> 2.47 | E5: ='ПР-3'!Q30 -> 0.95 | F5: =(C5+D5+E5)/3 -> 1.45
B6: конец | C6: ='ПР-1'!L30 -> 1.25 | D6: ='ПР-2'!N30 -> 3.47 | E6: ='ПР-3'!R30 -> 1.29 | F6: =(C6+D6+E6)/3 -> 2.00
A27: ВЫВОДЫ:
A28: Начало учебного года:
A36: Конец учебного года:

Sheet РР-1
B1: Образовательная область «Речевое развитие» | S1: ОГЛАВЛЕНИЕ
B2: НАПРАВЛЕНИЕ I. ФОРМИРОВАНИЕ СЛОВАРЯ | L2: НАПРАВЛЕНИЕ 2. ЗВУКОВАЯ КУЛЬТУРА РЕЧИ.
B4: №п/п | C4: ФИ ребенка | D4: Понимает обобщаеющие слова - мебель, одежда | F4: Различает и называет части, качества предметов, сходства | H4: Использует в речи слова, обозначающие названия предметов ближайшего окружения | J4: среднее значение | L4: Чётко произносит все гласные звуки, определяет заданный гласный звук из двух | N4: Правильно произносит твердые и мягкие согласные звуки (м, б, п, т, д, н, к, х, ф, в, л, с, ц) | P4: Отчетливо произносит слова и короткие фразы | R4: Тепмп речи правильный, интоннационно выразителен | T4: среднее значение
D6: н.г. | E6: к.г. | F6: н.г. | G6: к.г. | H6: н.г. | I6: к.г. | J6: н.г. | K6: к.г. | L6: н.г. | M6: к.г. | N6: н.г. | O6: к.г. | P6: н.г. | Q6: к.г. | R6: н.г. | S6: к.г. | T6: н.г. | U6: к.г.
B7: 1 | C7: Иванов | D7: 2 | E7: 3 | F7: 2 | G7: 3 | H7: 4 | I7: 5 | J7: =(D7+F7+H7)/3 -> 3 | K7: =(E7+G7+I7)/3 -> 4 | L7: 3 | M7: 3 | N7: 3 | O7: 4 | P7: 3 | Q7: 4 | R7: 3 | S7: 4 | T7: =(L7+N7+P7+R7)/4 -> 3.00 | U7: =(M7+O7+Q7+S7)/4 -> 3.75
B8: 2 | C8: Петров | D8: 2 | E8: 3 | F8: 2 | G8: 3 | H8: 2 | I8: 3 | J8: =(D8+F8+H8)/3 -> 2 | K8: =(E8+G8+I8)/3 -> 3 | L8: 3 | M8: 4 | N8: 3 | O8: 4 | P8: 3 | Q8: 3 | R8: 4 | S8: 5 | T8: =(L8+N8+P8+R8)/4 -> 3.25 | U8: =(M8+O8+Q8+S8)/4 -> 4.00
B9: 3 | C9: Сидоров | D9: 3 | E9: 4 | F9: 3 | G9: 4 | H9: 4 | I9: 5 | J9: 3 | K9: 4 | L9: 2 | M9: 3 | N9: 2 | O9: 3 | P9: 2 | Q9: 3 | R9: 2 | S9: 3 | T9: 2.00 | U9: 3.00
B10: 4 | J10: 0 | K10: 0 | T10: 0.00 | U10: 0.00
B11: 5 | J11: 0 | K11: 0 | T11: 0.00 | U11: 0.00
B12: 6 | J12: 0 | K12: 0 | T12: 0.00 | U12: 0.00
B13: 7 | J13: 0 | K13: 0 | T13: 0.00 | U13: 0.00
B14: 8 | J14: 0 | K14: 0 | T14: 0.00 | U14: 0.00
B15: 9 | J15: 0 | K15: 0 | T15: 0.00 | U15: 0.00
B16: 10 | J16: 0 | K16: 0 | T16: 0.00 | U16: 0.00
B17: 11 | J17: 0 | K17: 0 | T17: 0.00 | U17: 0.00
B18: 12 | J18: 0 | K18: 0 | T18: 0.00 | U18: 0.00
B19: 13 | J19: 0 | K19: 0 | T19: 0.00 | U19: 0.00
B20: 14 | J20: 0 | K20: 0 | T20: 0.00 | U20: 0.00
B21: 15 | J21: 0 | K21: 0 | T21: 0.00 | U21: 0.00
B22: 16 | J22: 0 | K22: 0 | T22: 0.00 | U22: 0.00
B23: 17 | J23: 0 | K23: 0 | T23: 0.00 | U23: 0.00
B24: 18 | J24: 0 | K24: 0 | T24: 0.00 | U24: 0.00
B25: 19 | J25: 0 | K25: 0 | T25: 0.00 | U25: 0.00
B26: 20 | J26: 0 | K26: 0 | T26: 0.00 | U26: 0.00
B27: 21 | J27: 0 | K27: 0 | T27: 0.00 | U27: 0.00
B28: 22 | J28: 0 | K28: 0 | T28: 0.00 | U28: 0.00
B29: 23 | J29: 0 | K29: 0 | T29: 0.00 | U29: 0.00
B30: 24 | J30: 0 | K30: 0 | T30: 0.00 | U30: 0.00
C31: среднее значение: | D31: =(D7+D8+D9+D10+D11+D12+D13+D14+D15+D16+D17+D18+D19+D20+D21+D22+D23+D24+D25+D26+D27+D28+D29+D30)/COUNTA($C$7:$C$30) -> 2.33 | E31: =(E7+E8+E9+E10+E11+E12+E13+E14+E15+E16+E17+E18+E19+E20+E21+E22+E23+E24+E25+E26+E27+E28+E29+E30)/24 -> 0.42 | F31: =(F7+F8+F9+F10+F11+F12+F13+F14+F15+F16+F17+F18+F19+F20+F21+F22+F23+F24+F25+F26+F27+F28+F29+F30)/24 -> 0.29 | G31: =(G7+G8+G9+G10+G11+G12+G13+G14+G15+G16+G17+G18+G19+G20+G21+G22+G23+G24+G25+G26+G27+G28+G29+G30)/24 -> 0.42 | H31: 0.42 | I31: 0.54 | J31: 1 | K31: 0 | L31: 0.33 | M31: 0.42 | N31: 0.33 | O31: 0.46 | P31: 0.33 | Q31: 0.42 | R31: 0.38 | S31: 0.50 | T31: =(L31+N31+P31+R31)/4 -> 0.34 | U31: =(M31+O31+Q31+S31)/4 -> 0.45
C33: начало года | L33: начало года
D34: всего | E34: норма | F34: ниже нормы | G34: низкий | O34: всего | P34: норма | Q34: ниже нормы | R34: низкий
C35: количество детей | D35: =COUNTA($C$7:$C$30) -> 3 | E35: =COUNTIF(T7:T30,">=3,8") -> 0 | F35: =COUNTIFS(T7:T30,"<3,7",T7:T30,">=2,3") -> 2 | G35: =COUNTIFS(T7:T30,"<2,2",T7:T30,">0") -> 1 | L35: количество детей | O35: =COUNTA($C$7:$C$30) -> 3 | P35: =COUNTIF(T7:T30,">=3,8") -> 0 | Q35: =COUNTIFS(T7:T30,"<3,7",T7:T30,">=2,3") -> 2 | R35: =COUNTIFS(T7:T30,"<2,2",T7:T30,">0") -> 1
C36: % | D36: 100 | E36: =E35*D36/D35 -> 0 | F36: =F35*D36/D35 -> 66.7 | G36: =G35*D36/D35 -> 33.3 | L36: % | O36: 100 | P36: =P35*O36/O35 -> 0 | Q36: =Q35*O36/O35 -> 66.7 | R36: =R35*O36/O35 -> 33.3
C38: конец года | L38: конец года
D39: всего | E39: норма | F39: ниже нормы | G39: низкий | O39: всего | P39: норма | Q39: ниже нормы | R39: низкий
C40: количество детей | D40: =COUNTA(C7:C30) -> 3 | E40: =COUNTIF(U7:U30,">=3,8") -> 1 | F40: =COUNTIFS(U7:U30,"<3,7",U7:U30,">=2,3") -> 1 | G40: =COUNTIFS(U7:U30,"<2,2",U7:U30,">0") -> 0 | L40: количество детей | O40: =COUNTA($C$7:$C$30) -> 3 | P40: =COUNTIF(U7:U30,">=3,8") -> 1 | Q40: =COUNTIFS(U7:U30,"<3,7",U7:U30,">=2,3") -> 1 | R40: =COUNTIFS(U7:U30,"<2,2",U7:U30,">0") -> 0
C41: % | D41: 100 | E41: =E40*D41/D40 -> 33.3 | F41: =F40*D41/D40 -> 33.3 | G41: =G40*D41/D40 -> 0.0 | L41: % | O41: 100 | P41: =P40*O41/O40 -> 33.3 | Q41: =Q40*O41/O40 -> 33.3 | R41: =R40*O41/O40 -> 0.0

Sheet РР-2
A1: НАПРАВЛЕНИЕ 3. ГРАММАТИЧЕСКИЙ СТРОЙ РЕЧИ. | Q1: ОГЛАВЛЕНИЕ
A3: №п/п | B3: ФИ ребенка | C3: Умеет согласовывать слова в роде, числе и падеже | E3: Употребляет существительные с предлогами | G3: Использует в речи имена сущ-ые в форме ед. и мн.ч., обозначающие животных и их детенышей | I3: Составляет предложения с однородными членами | K3: Умеет образовывать повелительную форму глаголов | M3: Использует приставочный способ для образования глаголов (вошел - вышел) | O3: Образовывает звукоподражательные глаголы (чирикает) | Q3: среднее значение
C5: н.г. | D5: к.г. | E5: н.г. | F5: к.г. | G5: н.г. | H5: к.г. | I5: н.г. | J5: к.г. | K5: н.г. | L5: к.г. | M5: н.г. | N5: к.г. | O5: н.г. | P5: к.г. | Q5: н.г. | R5: к.г.
A6: 1 | B6: Иванов | C6: 3 | D6: 4 | E6: 2 | F6: 3 | G6: 3 | H6: 4 | I6: 3 | J6: 4 | K6: 4 | L6: 5 | M6: 3 | N6: 4 | O6: 3 | P6: 4 | Q6: =(C6+E6+G6+I6+K6+M6+O6)/7 -> 3.00 | R6: =(D6+F6+H6+J6+L6+N6+P6)/7 -> 4.00
A7: 2 | B7: Петров | Q7: =(C7+E7+G7+I7+K7+M7+O7)/7 -> 0.00 | R7: =(D7+F7+H7+J7+L7+N7+P7)/7 -> 0.00
A8: 3 | B8: Сидоров | Q8: 0.00 | R8: 0.00
A9: 4 | Q9: 0.00 | R9: 0.00
A10: 5 | Q10: 0.00 | R10: 0.00
A11: 6 | Q11: 0.00 | R11: 0.00
A12: 7 | Q12: 0.00 | R12: 0.00
A13: 8 | Q13: 0.00 | R13: 0.00
A14: 9 | Q14: 0.00 | R14: 0.00
A15: 10 | Q15: 0.00 | R15: 0.00
A16: 11 | Q16: 0.00 | R16: 0.00
A17: 12 | Q17: 0.00 | R17: 0.00
A18: 13 | Q18: 0.00 | R18: 0.00
A19: 14 | Q19: 0.00 | R19: 0.00
A20: 15 | Q20: 0.00 | R20: 0.00
A21: 16 | Q21: 0.00 | R21: 0.00
A22: 17 | Q22: 0.00 | R22: 0.00
A23: 18 | Q23: 0.00 | R23: 0.00
A24: 19 | Q24: 0.00 | R24: 0.00
A25: 20 | Q25: 0.00 | R25: 0.00
A26: 21 | Q26: 0.00 | R26: 0.00
A27: 22 | Q27: 0.00 | R27: 0.00
A28: 23 | Q28: 0.00 | R28: 0.00
A29: 24 | Q29: 0.00 | R29: 0.00
B30: среднее значение: | C30: =(C6+C7+C8+C9+C10+C11+C12+C13+C14+C15+C16+C17+C18+C19+C20+C21+C22+C23+C24+C25+C26+C27+C28+C29)/COUNTA($B$6:$B$29) -> 1.00 | D30: =(D6+D7+D8+D9+D10+D11+D12+D13+D14+D15+D16+D17+D18+D19+D20+D21+D22+D23+D24+D25+D26+D27+D28+D29)/COUNTA($B$6:$B$29) -> 1.33 | E30: 0.67 | F30: 1.00 | G30: 1.00 | H30: 1.33 | I30: 1.00 | J30: 1.33 | K30: 1.33 | L30: 1.67 | M30: 1.00 | N30: 1.33 | O30: 1.00 | P30: 1.33 | Q30: 1.00 | R30: 1.33
B32: начало года
C33: всего | D33: норма | E33: ниже нормы | F33: низкий
B34: количество детей | C34: =COUNTA($B$6:$B$29) -> 3 | D34: =COUNTIF(Q6:Q29,">=3,8") -> 0 | E34: =COUNTIFS(Q6:Q29,"<3,7",Q6:Q29,">=2,3") -> 1 | F34: =COUNTIFS(Q6:Q29,"<2,2",Q6:Q29,">0") -> 0
B35: % | C35: 100 | D35: =D34*C35/C34 -> 0 | E35: =E34*C35/C34 -> 33.3 | F35: =F34*C35/C34 -> 0.0
B37: конец года
C38: всего | D38: норма | E38: ниже нормы | F38: низкий
B39: количество детей | C39: =COUNTA(B5:B28) -> 3 | D39: =COUNTIF(R6:R29,">=3,8") -> 1 | E39: =COUNTIFS(R6:R29,"<3,7",R6:R29,">=2,3") -> 0 | F39: =COUNTIFS(R6:R29,"<2,2",R6:R29,">0") -> 0
B40: % | C40: 100 | D40: =D39*C40/C39 -> 33.3 | E40: =E39*C40/C39 -> 0.0 | F40: =F39*C40/C39 -> 0.0

Sheet РР-3
A1: НАПРАВЛЕНИЕ 4. СВЯЗНАЯ РЕЧЬ | M1: ОГЛАВЛЕНИЕ
A3: №п/п | B3: ФИ ребенка | C3: Отвечает на вопросы педаога при рассматривании предметов, картин, иллюстраций | E3: Свободно вступает в общение со взрослыми и детьми | G3: Пользуется простыми формулами речевого этикета | I3: Составляет рассказ по картинке из 3-4 предложений | K3: С помощью педагога пересказывает хорошо знакомые сказки | M3: Читает наизусть короткие стихотворения | O3: среднее значение
C5: н.г. | D5: к.г. | E5: н.г. | F5: к.г. | G5: н.г. | H5: к.г. | I5: н.г. | J5: к.г. | K5: н.г. | L5: к.г. | M5: н.г. | N5: к.г. | O5: н.г. | P5: к.г.
A6: 1 | B6: Иванов | C6: 2 | D6: 3 | E6: 3 | F6: 4 | G6: 4 | H6: 4 | I6: 4 | J6: 5 | K6: 4 | L6: 4 | M6: 3 | N6: 4 | O6: =(C6+E6+G6+I6+K6+M6)/6 -> 3.33 | P6: =(D6+F6+H6+J6+L6+N6)/6 -> 4.00
A7: 2 | B7: Петров | O7: =(C7+E7+G7+I7+K7+M7)/6 -> 0.00 | P7: =(D7+F7+H7+J7+L7+N7)/6 -> 0.00
A8: 3 | B8: Сидоров | O8: 0.00 | P8: 0.00
A9: 4 | O9: 0.00 | P9: 0.00
A10: 5 | O10: 0.00 | P10: 0.00
A11: 6 | O11: 0.00 | P11: 0.00
A12: 7 | O12: 0.00 | P12: 0.00
A13: 8 | O13: 0.00 | P13: 0.00
A14: 9 | O14: 0.00 | P14: 0.00
A15: 10 | O15: 0.00 | P15: 0.00
A16: 11 | O16: 0.00 | P16: 0.00
A17: 12 | O17: 0.00 | P17: 0.00
A18: 13 | O18: 0.00 | P18: 0.00
A19: 14 | O19: 0.00 | P19: 0.00
A20: 15 | O20: 0.00 | P20: 0.00
A21: 16 | O21: 0.00 | P21: 0.00
A22: 17 | O22: 0.00 | P22: 0.00
A23: 18 | O23: 0.00 | P23: 0.00
A24: 19 | O24: 0.00 | P24: 0.00
A25: 20 | O25: 0.00 | P25: 0.00
A26: 21 | O26: 0.00 | P26: 0.00
A27: 22 | O27: 0.00 | P27: 0.00
A28: 23 | O28: 0.00 | P28: 0.00
A29: 24 | O29: 0.00 | P29: 0.00
B30: среднее значение: | C30: =(C6+C7+C8+C9+C10+C11+C12+C13+C14+C15+C16+C17+C18+C19+C20+C21+C22+C23+C24+C25+C26+C27+C28+C29)/COUNTA($B$6:$B$29) -> 0.67 | D30: =(D6+D7+D8+D9+D10+D11+D12+D13+D14+D15+D16+D17+D18+D19+D20+D21+D22+D23+D24+D25+D26+D27+D28+D29)/COUNTA($B$6:$B$29) -> 1.00 | E30: 1.00 | F30: 1.33 | G30: 1.33 | H30: 1.33 | I30: 1.33 | J30: 1.67 | K30: 1.33 | L30: 1.33 | M30: 1.00 | N30: 1.33 | O30: 1.11 | P30: 1.33
B33: начало года
C34: всего | D34: норма | E34: ниже нормы | F34: низкий
B35: количество детей | C35: =COUNTA($B$6:$B$29) -> 3 | D35: =COUNTIF(O6:O29,">=3,8") -> 0 | E35: =COUNTIFS(O6:O29,"<3,7",O6:O29,">=2,3") -> 1 | F35: =COUNTIFS(O6:O29,"<2,2",O6:O29,">0") -> 0
B36: % | C36: 100 | D36: =D35*C36/C35 -> 0 | E36: =E35*C36/C35 -> 33.3 | F36: =F35*C36/C35 -> 0.0
B38: конец года
C39: всего | D39: норма | E39: ниже нормы | F39: низкий
B40: количество детей | C40: =COUNTA(B5:B28) -> 3 | D40: =COUNTIF(P6:P29,">=3,8") -> 1 | E40: =COUNTIFS(P6:P29,"<3,7",P6:P29,">=2,3") -> 0 | F40: =COUNTIFS(P6:P29,"<2,2",P6:P29,">0") -> 0
B41: % | C41: 100 | D41: =D40*C41/C40 -> 33.3 | E41: =E40*C41/C40 -> 0.0 | F41: =F40*C41/C40 -> 0.0

Sheet РР-4
B1: НАПРАВЛЕНИЕ 5. ПОДГОТОВКА К ОБУЧЕНИЮ ГРАМОТЕ. | J1: НАПРАВЛЕНИЕ 6. ИНТЕРЕС К ХУДОЖЕСТВЕННОЙ ЛИТЕРАТУРЕ
P2: ОГЛАВЛЕНИЕ
B3: №п/п | C3: ФИ ребенка | D3: Вслушивается в звучание слова | F3: Владеет терминами "слово", "звук" | H3: среднее значение | J3: Внятно, не спеша произносит небольшие потешки и стихотворения | L3: Воспроизводит короткие ролевые диалоги из сказок и прибауток в играх-драматизациях | N3: Эмоционально откливаектся на процесс совместного слушания художественных произведений (улыбка, смех, жесты) | P3: Понимает содержание и композицию текста (поступки персонажы, последовательность событий) | R3: среднее значение
D5: н.г. | E5: к.г. | F5: н.г. | G5: к.г. | H5: н.г. | I5: к.г. | J5: н.г. | K5: к.г. | L5: н.г. | M5: к.г. | N5: н.г. | O5: к.г. | P5: н.г. | Q5: к.г. | R5: н.г. | S5: к.г.
B6: 1 | C6: Иванов | D6: 3 | E6: 4 | F6: 3 | G6: 4 | H6: =(D6+F6)/2 -> 3.00 | I6: =(+E6+G6)/2 -> 4.00 | J6: 2 | K6: 3 | L6: 2 | M6: 3 | N6: 4 | O6: 5 | P6: 3 | Q6: 4 | R6: =(J6+L6+N6+P6)/4 -> 2.75 | S6: =(K6+M6+O6+Q6)/4 -> 3.75
B7: 2 | C7: Петров | D7: 2 | E7: 3 | F7: 2 | G7: 3 | H7: =(D7+F7)/2 -> 2.00 | I7: =(+E7+G7)/2 -> 3.00 | J7: 3 | K7: 4 | L7: 2 | M7: 3 | N7: 3 | O7: 5 | P7: 3 | Q7: 4 | R7: =(J7+L7+N7+P7)/4 -> 2.75 | S7: =(K7+M7+O7+Q7)/4 -> 4.00
B8: 3 | C8: Сидоров | D8: 4 | E8: 5 | F8: 4 | G8: 5 | H8: 4.00 | I8: 5.00 | J8: 3 | K8: 4 | L8: 3 | M8: 4 | N8: 4 | O8: 5 | P8: 4 | Q8: 5 | R8: 3.50 | S8: 4.50
B9: 4 | H9: 0.00 | I9: 0.00 | R9: 0.00 | S9: 0.00
B10: 5 | H10: 0.00 | I10: 0.00 | R10: 0.00 | S10: 0.00
B11: 6 | H11: 0.00 | I11: 0.00 | R11: 0.00 | S11: 0.00
B12: 7 | H12: 0.00 | I12: 0.00 | R12: 0.00 | S12: 0.00
B13: 8 | H13: 0.00 | I13: 0.00 | R13: 0.00 | S13: 0.00
B14: 9 | H14: 0.00 | I14: 0.00 | R14: 0.00 | S14: 0.00
B15: 10 | H15: 0.00 | I15: 0.00 | R15: 0.00 | S15: 0.00
B16: 11 | H16: 0.00 | I16: 0.00 | R16: 0.00 | S16: 0.00
B17: 12 | H17: 0.00 | I17: 0.00 | R17: 0.00 | S17: 0.00
B18: 13 | H18: 0.00 | I18: 0.00 | R18: 0.00 | S18: 0.00
B19: 14 | H19: 0.00 | I19: 0.00 | R19: 0.00 | S19: 0.00
B20: 15 | H20: 0.00 | I20: 0.00 | R20: 0.00 | S20: 0.00
B21: 16 | H21: 0.00 | I21: 0.00 | R21: 0.00 | S21: 0.00
B22: 17 | H22: 0.00 | I22: 0.00 | R22: 0.00 | S22: 0.00
B23: 18 | H23: 0.00 | I23: 0.00 | R23: 0.00 | S23: 0.00
B24: 19 | H24: 0.00 | I24: 0.00 | R24: 0.00 | S24: 0.00
B25: 20 | H25: 0.00 | I25: 0.00 | R25: 0.00 | S25: 0.00
B26: 21 | H26: 0.00 | I26: 0.00 | R26: 0.00 | S26: 0.00
B27: 22 | H27: 0.00 | I27: 0.00 | R27: 0.00 | S27: 0.00
B28: 23 | H28: 0.00 | I28: 0.00 | R28: 0.00 | S28: 0.00
B29: 24 | H29: 0.00 | I29: 0.00 | R29: 0.00 | S29: 0.00
C30: среднее значение: | D30: =(D6+D7+D8+D9+D10+D11+D12+D13+D14+D15+D16+D17+D18+D19+D20+D21+D22+D23+D24+D25+D26+D27+D28+D29)/COUNTA($C$6:$C$29) -> 3.00 | E30: =(E6+E7+E8+E9+E10+E11+E12+E13+E14+E15+E16+E17+E18+E19+E20+E21+E22+E23+E24+E25+E26+E27+E28+E29)/COUNTA($C$6:$C$29) -> 4.00 | F30: =(F6+F7+F8+F9+F10+F11+F12+F13+F14+F15+F16+F17+F18+F19+F20+F21+F22+F23+F24+F25+F26+F27+F28+F29)/COUNTA($C$6:$C$29) -> 3.00 | G30: =(G6+G7+G8+G9+G10+G11+G12+G13+G14+G15+G16+G17+G18+G19+G20+G21+G22+G23+G24+G25+G26+G27+G28+G29)/COUNTA($C$6:$C$29) -> 4.00 | H30: 3.00 | I30: 4.00 | J30: =(J6+J7+J8+J9+J10+J11+J12+J13+J14+J15+J16+J17+J18+J19+J20+J21+J22+J23+J24+J25+J26+J27+J28+J29)/COUNTA($C$6:$C$29) -> 2.67 | K30: 3.67 | L30: 2.33 | M30: 3.33 | N30: 3.67 | O30: 5.00 | P30: 3.33 | Q30: 4.33 | R30: 3.00 | S30: 4.08
C32: начало года | J32: начало года
D33: всего | E33: норма | F33: ниже нормы | G33: низкий | M33: всего | N33: норма | O33: ниже нормы | P33: низкий
C34: количество детей | D34: =COUNTA($C$6:$C$29) -> 3 | E34: =COUNTIF(R6:R29,">=3,8") -> 0 | F34: =COUNTIFS(R6:R29,"<3,7",R6:R29,">=2,3") -> 3 | G34: =COUNTIFS(R6:R29,"<2,2",R6:R29,">0") -> 0 | J34: количество детей | M34: =COUNTA($C$6:$C$29) -> 3 | N34: =COUNTIF(R6:R29,">=3,8") -> 0 | O34: =COUNTIFS(R6:R29,"<3,7",R6:R29,">=2,3") -> 3 | P34: =COUNTIFS(R6:R29,"<2,2",R6:R29,">0") -> 0
C35: % | D35: 100 | E35: =E34*D35/D34 -> 0 | F35: =F34*D35/D34 -> 100.0 | G35: =G34*D35/D34 -> 0.0 | J35: % | M35: 100 | N35: =N34*M35/M34 -> 0 | O35: =O34*M35/M34 -> 100.0 | P35: =P34*M35/M34 -> 0.0
C37: конец года | J37: конец года
D38: всего | E38: норма | F38: ниже нормы | G38: низкий | M38: всего | N38: норма | O38: ниже нормы | P38: низкий
C39: количество детей | D39: =COUNTA(C5:C28) -> 3 | E39: =COUNTIF(S6:S29,">=3,8") -> 2 | F39: =COUNTIFS(S6:S29,"<3,7",S6:S29,">=2,3") -> 0 | G39: =COUNTIFS(S6:S29,"<2,2",S6:S29,">0") -> 0 | J39: количество детей | M39: =COUNTA(L5:L28) -> 4 | N39: =COUNTIF(S6:S29,">=3,8") -> 2 | O39: =COUNTIFS(S6:S29,"<3,7",S6:S29,">=2,3") -> 0 | P39: =COUNTIFS(S6:S29,"<2,2",S6:S29,">0") -> 0
C40: % | D40: 100 | E40: =E39*D40/D39 -> 66.7 | F40: =F39*D40/D39 -> 0.0 | G40: =G39*D40/D39 -> 0.0 | J40: % | M40: 100 | N40: =N39*M40/M39 -> 50.0 | O40: =O39*M40/M39 -> 0.0 | P40: =P39*M40/M39 -> 0.0

Sheet ИТОГ РР
A1: Обобщение результатов педагогической диагностики по направлениям
B2: ОО «Речевое развитие»
A4: ОГЛАВЛЕНИЕ | B4: Формирование словаря | C4: Звуковая культура речи | D4: Грамматический строй речи | E4: Связная речь | F4: Подготовка к обучению грамоте | G4: Интерес к художественной литературе | H4: Средний уровень речевого развития
B5: 1 | C5: 2 | D5: 3 | E5: 4 | F5: 5 | G5: 6 | H5: ср.ур.
A6: начало | B6: ='РР-1'!J31 -> 1.01 | C6: ='РР-1'!T31 -> 0.34 | D6: ='РР-2'!Q30 -> 1.00 | E6: ='РР-3'!O30 -> 1.11 | F6: ='РР-4'!H30 -> 3.00 | G6: ='РР-4'!R30 -> 3.00 | H6: =(B6+C6+D6+E6+G6)/5 -> 1.29
A7: конец | B7: ='РР-1'!U31 -> 0.45 | C7: ='РР-1'!U31 -> 0.45 | D7: ='РР-2'!R30 -> 1.33 | E7: ='РР-3'!P30 -> 1.33 | F7: ='РР-4'!I30 -> 4.00 | G7: ='РР-4'!S30 -> 4.08 | H7: =(B7+C7+D7+E7+G7)/5 -> 1.53
A28: ВЫВОДЫ:
A29: Начало учебного года:
A37: Конец учебного года:

Sheet ХЭ-1
A1: Образовательная область «Художественно-эстетическое развитие»
A2: НАПРАВЛЕНИЕ I. ПРИОБЩЕНИЕ К ИСКУССТВУ. | Q2: НАПРАВЛЕНИЕ 2. ИЗОБРАЗИТЕЛЬНАЯ ДЕЯТЕЛЬНОСТЬ | AB2: ОГЛАВЛЕНИЕ
A4: №п/п | B4: ФИ ребенка | C4: Проявляет интерес к произведениям искусства | E4: Различает некоторые виды искусства | G4: Слушает чтение художественных текстов, сосредотачивается на этой деятельности на 10—15 минут, не отвлекается при этом | I4: Проявляет положительный эмоциональный отклик на красоту природы | K4: среднее значение | M4: Изобразительная деятельность | AC4: среднее значение
M5: рисование | S5: лепка | W5: аппликация; народное ДПИ
M6: Правильно держит карандаш, не сжимая сильно пальцы | O6: рисует линии вразных направлениях | Q6: создает несложные сюжетные композации | S6: раскатывает комочки прямыми и круговыми движениями | U6: создает предметы состоящие из 2-3 частей | W6: умеет пользоваться клеем | Y6: Изображает/создаёт отдельные предметы, простые по композиции и по содержанию сюжеты, используя разные материалы | AA6: Создаёт изображения предметов из готовых фигур. Украшает заготовки из бумаги разной формы
C7: н.г. | D7: к.г. | E7: н.г. | F7: к.г. | G7: н.г. | H7: к.г. | I7: н.г. | J7: к.г. | K7: н.г. | L7: к.г. | M7: н.г. | N7: к.г. | O7: н.г. | P7: к.г. | Q7: н.г. | R7: к.г. | S7: н.г. | T7: к.г. | U7: н.г. | V7: к.г. | W7: н.г. | X7: к.г. | Y7: н.г. | Z7: к.г. | AA7: н.г. | AB7: к.г. | AC7: н.г. | AD7: к.г.
A8: 1 | B8: Иванов | C8: 2 | D8: 3 | E8: 2 | F8: 3 | G8: 4 | H8: 5 | I8: 3 | J8: 4 | K8: =(C8+E8+G8+I8)/4 -> 2.75 | L8: =(D8+F8+H8+J8)/4 -> 3.75 | M8: 2 | N8: 3 | O8: 3 | P8: 4 | Q8: 3 | R8: 4 | S8: 3 | T8: 4 | U8: 2 | V8: 3 | W8: 4 | X8: 5 | Y8: 4 | Z8: 5 | AA8: 3 | AB8: 4 | AC8: =(M8+O8+Q8+S8+U8+W8+Y8+AA8)/8 -> 3.00 | AD8: =(N8+P8+R8+T8+V8+X8+Z8+AB8)/8 -> 4.00
A9: 2 | B9: Петров | K9: =(C9+E9+G9+I9)/4 -> 0.00 | L9: =(D9+F9+H9+J9)/4 -> 0.00 | AC9: =(M9+O9+Q9+S9+U9+W9+Y9+AA9)/8 -> 0.00 | AD9: =(N9+P9+R9+T9+V9+X9+Z9+AB9)/8 -> 0.00
A10: 3 | B10: Сидоров | K10: 0.00 | L10: 0.00 | AC10: 0.00 | AD10: 0.00
A11: 4 | K11: 0.00 | L11: 0.00 | AC11: 0.00 | AD11: 0.00
A12: 5 | K12: 0.00 | L12: 0.00 | AC12: 0.00 | AD12: 0.00
A13: 6 | K13: 0.00 | L13: 0.00 | AC13: 0.00 | AD13: 0.00
A14: 7 | K14: 0.00 | L14: 0.00 | AC14: 0.00 | AD14: 0.00
A15: 8 | K15: 0.00 | L15: 0.00 | AC15: 0.00 | AD15: 0.00
A16: 9 | K16: 0.00 | L16: 0.00 | AC16: 0.00 | AD16: 0.00
A17: 10 | K17: 0.00 | L17: 0.00 | AC17: 0.00 | AD17: 0.00
A18: 11 | K18: 0.00 | L18: 0.00 | AC18: 0.00 | AD18: 0.00
A19: 12 | K19: 0.00 | L19: 0.00 | AC19: 0.00 | AD19: 0.00
A20: 13 | K20: 0.00 | L20: 0.00 | AC20: 0.00 | AD20: 0.00
A21: 14 | K21: 0.00 | L21: 0.00 | AC21: 0.00 | AD21: 0.00
A22: 15 | K22: 0.00 | L22: 0.00 | AC22: 0.00 | AD22: 0.00
A23: 16 | K23: 0.00 | L23: 0.00 | AC23: 0.00 | AD23: 0.00
A24: 17 | K24: 0.00 | L24: 0.00 | AC24: 0.00 | AD24: 0.00
A25: 18 | K25: 0.00 | L25: 0.00 | AC25: 0.00 | AD25: 0.00
A26: 19 | K26: 0.00 | L26: 0.00 | AC26: 0.00 | AD26: 0.00
A27: 20 | K27: 0.00 | L27: 0.00 | AC27: 0.00 | AD27: 0.00
A28: 21 | K28: 0.00 | L28: 0.00 | AC28: 0.00 | AD28: 0.00
A29: 22 | K29: 0.00 | L29: 0.00 | AC29: 0.00 | AD29: 0.00
A30: 23 | K30: 0.00 | L30: 0.00 | AC30: 0.00 | AD30: 0.00
A31: 24 | K31: 0.00 | L31: 0.00 | AC31: 0.00 | AD31: 0.00
B32: среднее значение: | C32: =(C8+C9+C10+C11+C12+C13+C14+C15+C16+C17+C18+C19+C20+C21+C22+C23+C24+C25+C26+C27+C28+C29+C30+C31)/COUNTA($B$8:$B$31) -> 0.67 | D32: =(D8+D9+D10+D11+D12+D13+D14+D15+D16+D17+D18+D19+D20+D21+D22+D23+D24+D25+D26+D27+D28+D29+D30+D31)/COUNTA($B$8:$B$31) -> 1.00 | E32: 0.67 | F32: 1.00 | G32: 1.33 | H32: 1.67 | I32: 1.00 | J32: 1.33 | K32: 0.92 | L32: 1.25 | M32: 0.67 | N32: 1.00 | O32: 1.00 | P32: 1.33 | Q32: 1.00 | R32: 1.33 | S32: 1.00 | T32: 1.33 | U32: 0.67 | V32: 1.00 | W32: 1.33 | X32: 1.67 | Y32: 1.33 | Z32: 1.67 | AA32: 1.00 | AB32: 1.33 | AC32: 1.00 | AD32: 1.33
B33: начало года | M33: начало года
C34: всего | D34: норма | E34: ниже нормы | F34: низкий | P34: всего | Q34: норма | R34: ниже нормы | S34: низкий
B35: количество детей | C35: =COUNTA($B$8:$B$31) -> 3 | D35: =COUNTIF(AC8:AC31,">=3,8") -> 0 | E35: =COUNTIFS(AC8:AC31,"<3,7",AC8:AC31,">=2,3") -> 1 | F35: =COUNTIFS(AC8:AC31,"<2,2",AC8:AC31,">0") -> 0 | M35: количество детей | P35: =COUNTA($B$8:$B$31) -> 3 | Q35: =COUNTIF(AC8:AC31,">=3,8") -> 0 | R35: =COUNTIFS(AC8:AC31,"<3,7",AC8:AC31,">=2,3") -> 1 | S35: =COUNTIFS(AC8:AC31,"<2,2",AC8:AC31,">0") -> 0
B36: % | C36: 100 | D36: =D35*C36/C35 -> 0.00 | E36: =E35*C36/C35 -> 33.33 | F36: =F35*C36/C35 -> 0.00 | M36: % | P36: 100 | Q36: =Q35*P36/P35 -> 0.00 | R36: =R35*P36/P35 -> 33.33 | S36: =S35*P36/P35 -> 0.00
B38: конец года | M38: конец года
C39: всего | D39: норма | E39: ниже нормы | F39: низкий | P39: всего | Q39: норма | R39: ниже нормы | S39: низкий
B40: количество детей | C40: =COUNTA($B$8:$B$31) -> 3 | D40: =COUNTIF(AD8:AD31,">=3,8") -> 1 | E40: =COUNTIFS(AD8:AD31,"<3,7",AD8:AD31,">=2,3") -> 0 | F40: =COUNTIFS(AD8:AD31,"<2,2",AD8:AD31,">0") -> 0 | M40: количество детей | P40: =COUNTA($B$8:$B$31) -> 3 | Q40: =COUNTIF(AD8:AD31,">=3,8") -> 1 | R40: =COUNTIFS(AD8:AD31,"<3,7",AD8:AD31,">=2,3") -> 0 | S40: =COUNTIFS(AD8:AD31,"<2,2",AD8:AD31,">0") -> 0
B41: % | C41: 100 | D41: =D40*C41/C40 -> 33.33 | E41: =E40*C41/C40 -> 0.00 | F41: =F40*C41/C40 -> 0.00 | M41: % | P41: 100 | Q41: =Q40*P41/P40 -> 33.33 | R41: =R40*P41/P40 -> 0.00 | S41: =S40*P41/P40 -> 0.00

Sheet ХЭ-2
B1: НАПРАВЛЕНИЕ 3. КОНСТРУКТИВНАЯ ДЕЯТЕЛЬНОСТЬ | M1: ОГЛАВЛЕНИЕ
B3: №п/п | C3: ФИ ребенка | D3: Знает, называет и правильно использует детали строительного материала. Изменяет постройки, надстраивая или заменяя одни детали другими | F3: Сооружает постройки по собственному замыслу | H3: Обыгрывает постройки, объединяя их по сюжету | J3: Знает свойства песна, снега при сооружении построек | L3: После игры аккуратно складывает детали в коробки | N3: среднее значение
D5: н.г. | E5: к.г. | F5: н.г. | G5: к.г. | H5: н.г. | I5: к.г. | J5: н.г. | K5: к.г. | L5: н.г. | M5: к.г. | N5: н.г. | O5: к.г.
B6: 1 | C6: Иванов | N6: =(D6+F6+H6+J6+L6)/4 -> 0.00 | O6: =(E6+G6+I6+K6+M6)/4 -> 0.00
B7: 2 | C7: Петров | N7: =(D7+F7+H7+J7+L7)/4 -> 0.00 | O7: =(E7+G7+I7+K7+M7)/4 -> 0.00
B8: 3 | C8: Сидоров | N8: 0.00 | O8: 0.00
B9: 4 | N9: 0.00 | O9: 0.00
B10: 5 | N10: 0.00 | O10: 0.00
B11: 6 | N11: 0.00 | O11: 0.00
B12: 7 | N12: 0.00 | O12: 0.00
B13: 8 | N13: 0.00 | O13: 0.00
B14: 9 | N14: 0.00 | O14: 0.00
B15: 10 | N15: 0.00 | O15: 0.00
B16: 11 | N16: 0.00 | O16: 0.00
B17: 12 | N17: 0.00 | O17: 0.00
B18: 13 | N18: 0.00 | O18: 0.00
B19: 14 | N19: 0.00 | O19: 0.00
B20: 15 | N20: 0.00 | O20: 0.00
B21: 16 | N21: 0.00 | O21: 0.00
B22: 17 | N22: 0.00 | O22: 0.00
B23: 18 | N23: 0.00 | O23: 0.00
B24: 19 | N24: 0.00 | O24: 0.00
B25: 20 | N25: 0.00 | O25: 0.00
B26: 21 | N26: 0.00 | O26: 0.00
B27: 22 | N27: 0.00 | O27: 0.00
B28: 23 | N28: 0.00 | O28: 0.00
B29: 24 | N29: 0.00 | O29: 0.00
C30: среднее значение: | D30: =(D6+D7+D8+D9+D10+D11+D12+D13+D14+D15+D16+D17+D18+D19+D20+D21+D22+D23+D24+D25+D26+D27+D28+D29)/COUNTA($C$6:$C$29) -> 0.00 | E30: =(E6+E7+E8+E9+E10+E11+E12+E13+E14+E15+E16+E17+E18+E19+E20+E21+E22+E23+E24+E25+E26+E27+E28+E29)/COUNTA($C$6:$C$29) -> 0.00 | F30: 0.00 | G30: 0.00 | H30: 0.00 | I30: 0.00 | J30: 0.00 | K30: 0.00 | L30: 0.00 | M30: 0.00 | N30: 0.00 | O30: 0.00
C32: начало года
D33: всего | E33: норма | F33: ниже нормы | G33: низкий
C34: количество детей | D34: =COUNTA($C$6:$C$29) -> 3 | E34: =COUNTIF(N6:N29,">=3,8") -> 0 | F34: =COUNTIFS(N6:N29,"<3,7",N6:N29,">=2,3") -> 0 | G34: =COUNTIFS(N6:N29,"<2,2",N6:N29,">0") -> 0
C35: % | D35: 100 | E35: =E34*D35/D34 -> 0.00 | F35: =F34*D35/D34 -> 0.00 | G35: =G34*D35/D34 -> 0.00
C37: конец года
D38: всего | E38: норма | F38: ниже нормы | G38: низкий
C39: количество детей | D39: =COUNTA($C$6:$C$29) -> 3 | E39: =COUNTIF(O6:O29,">=3,8") -> 0 | F39: =COUNTIFS(O6:O29,"<3,7",O6:O29,">=2,3") -> 0 | G39: =COUNTIFS(O6:O29,"<2,2",O6:O29,">0") -> 0
C40: % | D40: 100 | E40: =E39*D40/D39 -> 0.00 | F40: =F39*D40/D39 -> 0.00 | G40: =G39*D40/D39 -> 0.00

Sheet ХЭ-3
B1: НАПРАВЛЕНИЕ 4. МУЗЫКАЛЬНАЯ ДЕЯТЕЛЬНОСТЬ | V1: ОГЛАВЛЕНИЕ
B3: №п/п | C3: ФИ ребенка | D3: Слушание | J3: Пение | N3: Песенное творчество | P3: Музыкально-ритмические движения | T3: Игра на ДМИ | X3: среднее значение
D4: Слушает музыкальное произведение до конца, понимает характер музыки | F4: Различает звуки по высоте в пределах октавы - септимы, замечает изменения в силе звучания мелодии (громко, тихо) | H4: Различает звучание муз.игрушек, ДМИ | J4: Поет без напряжения в диапазоне ре(ми) - ля(си) в одном темпе со всеми | L4: Передает характер музыки (весело, протяжно, ласково, напевно) | N4: Допевает мелодии колыбельных песен на слог "баю-баю" и веселых мелодий на слог "ля-ля" | P4: Умеет выполнять танцевальные движения: кружиться в парах, притоптывать попеременно ногами, двигаться под музыку с предметами | R4: Умеет передавать в движениях характер изображаемых животных | T4: Различает и называет музыкальные инструменты: дудочка, металлофон, колокольчик, бубен, погремушка, барабан, | V4: Старается подыгрывать на ДМИ
D5: н.г. | E5: к.г. | F5: н.г. | G5: к.г. | H5: н.г. | I5: к.г. | J5: н.г. | K5: к.г. | L5: н.г. | M5: к.г. | N5: н.г. | O5: к.г. | P5: н.г. | Q5: к.г. | R5: н.г. | S5: к.г. | T5: н.г. | U5: к.г. | V5: н.г. | W5: к.г. | X5: н.г. | Y5: к.г.
B6: 1 | C6: Иванов | D6: 3 | E6: 4 | F6: 3 | G6: 4 | H6: 4 | I6: 5 | J6: 4 | K6: 5 | L6: 3 | M6: 4 | N6: 4 | O6: 5 | P6: 3 | Q6: 4 | R6: 4 | S6: 5 | T6: 3 | U6: 4 | V6: 3 | W6: 4 | X6: =(D6+F6+H6+J6+L6+N6+P6+R6+T6+V6)/10 -> 3.40 | Y6: =(E6+G6+I6+K6+M6+O6+Q6+S6+U6+W6)/10 -> 4.40
B7: 2 | C7: Петров | D7: 2 | E7: 3 | F7: 2 | G7: 3 | H7: 2 | I7: 3 | J7: 2 | K7: 3 | L7: 1 | M7: 2 | N7: 1 | O7: 2 | P7: 2 | Q7: 3 | R7: 2 | S7: 3 | T7: 1 | U7: 2 | V7: 1 | W7: 2 | X7: =(D7+F7+H7+J7+L7+N7+P7+R7+T7+V7)/10 -> 1.60 | Y7: =(E7+G7+I7+K7+M7+O7+Q7+S7+U7+W7)/10 -> 2.60
B8: 3 | C8: Сидоров | D8: 3 | E8: 4 | F8: 3 | G8: 4 | H8: 3 | I8: 4 | J8: 3 | K8: 4 | L8: 3 | M8: 4 | N8: 3 | O8: 4 | P8: 3 | Q8: 4 | R8: 3 | S8: 4 | T8: 3 | U8: 4 | V8: 3 | W8: 4 | X8: 3.00 | Y8: 4.00
B9: 4 | X9: 0.00 | Y9: 0.00
B10: 5 | X10: 0.00 | Y10: 0.00
B11: 6 | X11: 0.00 | Y11: 0.00
B12: 7 | X12: 0.00 | Y12: 0.00
B13: 8 | X13: 0.00 | Y13: 0.00
B14: 9 | X14: 0.00 | Y14: 0.00
B15: 10 | X15: 0.00 | Y15: 0.00
B16: 11 | X16: 0.00 | Y16: 0.00
B17: 12 | X17: 0.00 | Y17: 0.00
B18: 13 | X18: 0.00 | Y18: 0.00
B19: 14 | X19: 0.00 | Y19: 0.00
B20: 15 | X20: 0.00 | Y20: 0.00
B21: 16 | X21: 0.00 | Y21: 0.00
B22: 17 | X22: 0.00 | Y22: 0.00
B23: 18 | X23: 0.00 | Y23: 0.00
B24: 19 | X24: 0.00 | Y24: 0.00
B25: 20 | X25: 0.00 | Y25: 0.00
B26: 21 | X26: 0.00 | Y26: 0.00
B27: 22 | X27: 0.00 | Y27: 0.00
B28: 23 | X28: 0.00 | Y28: 0.00
B29: 24 | X29: 0.00 | Y29: 0.00
C30: среднее значение: | D30: =(D6+D7+D8+D9+D10+D11+D12+D13+D14+D15+D16+D17+D18+D19+D20+D21+D22+D23+D24+D25+D26+D27+D28+D29)/COUNTA($C$6:$C$29) -> 2.67 | E30: =(E6+E7+E8+E9+E10+E11+E12+E13+E14+E15+E16+E17+E18+E19+E20+E21+E22+E23+E24+E25+E26+E27+E28+E29)/COUNTA($C$6:$C$29) -> 3.67 | F30: 2.67 | G30: 3.67 | H30: 3.00 | I30: 4.00 | J30: 3.00 | K30: 4.00 | L30: 2.33 | M30: 3.33 | N30: 2.67 | O30: 3.67 | P30: 2.67 | Q30: 3.67 | R30: 3.00 | S30: 4.00 | T30: 2.33 | U30: 3.33 | V30: 2.33 | W30: 3.33 | X30: 2.67 | Y30: 3.67
C32: начало года
D33: всего | E33: норма | F33: ниже нормы | G33: низкий
C34: количество детей | D34: =COUNTA($C$6:$C$29) -> 3 | E34: =COUNTIF(X6:X29,">=3,8") -> 0 | F34: =COUNTIFS(X6:X29,"<3,7",X6:X29,">=2,3") -> 2 | G34: =COUNTIFS(X6:X29,"<2,2",X6:X29,">0") -> 1
C35: % | D35: 100 | E35: =E34*D35/D34 -> 0.00 | F35: =F34*D35/D34 -> 66.67 | G35: =G34*D35/D34 -> 33.33
C37: конец года
D38: всего | E38: норма | F38: ниже нормы | G38: низкий
C39: количество детей | D39: =COUNTA($C$5:$C$28) -> 3 | E39: =COUNTIF(Y6:Y29,">=3,8") -> 2 | F39: =COUNTIFS(Y6:Y29,"<3,7",Y6:Y29,">=2,3") -> 1 | G39: =COUNTIFS(Y6:Y29,"<2,2",Y6:Y29,">0") -> 0
C40: % | D40: 100 | E40: =E39*D40/D39 -> 66.67 | F40: =F39*D40/D39 -> 33.33 | G40: =G39*D40/D39 -> 0.00

Sheet ХЭ-4
A1: НАПРАВЛЕНИЕ 5,6. ТЕАТРАЛИЗОВАННАЯ И КУЛЬТУРНО-ДОСУГОВАЯ ДЕЯТЕЛЬНОСТЬ
M2: ОГЛАВЛЕНИЕ
A3: №п/п | B3: ФИ ребенка | C3: Театрализованная деятельность | G3: среднее значение | I3: Культурно-досуговая деятельность | M3: среднее значение
C4: Умеет передавать характеристики персонажей (ласковая кошечка, мишка косолапый) | E4: В играх-драматизациях следит за сюжетом | I4: Проявляет интерес к различным видам досуговой деятельности | K4: С удовольствием участвует в праздниках, развлечениях и тд
C5: н.г. | D5: к.г. | E5: н.г. | F5: к.г. | G5: н.г. | H5: к.г. | I5: н.г. | J5: к.г. | K5: н.г. | L5: к.г. | M5: н.г. | N5: к.г.
A6: 1 | B6: Иванов | G6: =(C6+E6)/2 -> 0.00 | H6: =(D6+F6)/2 -> 0.00 | M6: =(I6+K6)/2 -> 0.00 | N6: 0.00
A7: 2 | B7: Петров | G7: =(C7+E7)/2 -> 0.00 | H7: 0.00 | M7: 0.00 | N7: 0.00
A8: 3 | B8: Сидоров | G8: 0.00 | H8: 0.00 | M8: 0.00 | N8: 0.00
A9: 4 | G9: 0.00 | H9: 0.00 | M9: 0.00 | N9: 0.00
A10: 5 | G10: 0.00 | H10: 0.00 | M10: 0.00 | N10: 0.00
A11: 6 | G11: 0.00 | H11: 0.00 | M11: 0.00 | N11: 0.00
A12: 7 | G12: 0.00 | H12: 0.00 | M12: 0.00 | N12: 0.00
A13: 8 | G13: 0.00 | H13: 0.00 | M13: 0.00 | N13: 0.00
A14: 9 | G14: 0.00 | H14: 0.00 | M14: 0.00 | N14: 0.00
A15: 10 | G15: 0.00 | H15: 0.00 | M15: 0.00 | N15: 0.00
A16: 11 | G16: 0.00 | H16: 0.00 | M16: 0.00 | N16: 0.00
A17: 12 | G17: 0.00 | H17: 0.00 | M17: 0.00 | N17: 0.00
A18: 13 | G18: 0.00 | H18: 0.00 | M18: 0.00 | N18: 0.00
A19: 14 | G19: 0.00 | H19: 0.00 | M19: 0.00 | N19: 0.00
A20: 15 | G20: 0.00 | H20: 0.00 | M20: 0.00 | N20: 0.00
A21: 16 | G21: 0.00 | H21: 0.00 | M21: 0.00 | N21: 0.00
A22: 17 | G22: 0.00 | H22: 0.00 | M22: 0.00 | N22: 0.00
A23: 18 | G23: 0.00 | H23: 0.00 | M23: 0.00 | N23: 0.00
A24: 19 | G24: 0.00 | H24: 0.00 | M24: 0.00 | N24: 0.00
A25: 20 | G25: 0.00 | H25: 0.00 | M25: 0.00 | N25: 0.00
A26: 21 | G26: 0.00 | H26: 0.00 | M26: 0.00 | N26: 0.00
A27: 22 | G27: 0.00 | H27: 0.00 | M27: 0.00 | N27: 0.00
A28: 23 | G28: 0.00 | H28: 0.00 | M28: 0.00 | N28: 0.00
A29: 24 | G29: 0.00 | H29: 0.00 | M29: 0.00 | N29: 0.00
B30: среднее значение: | C30: =(C6+C7+C8+C9+C10+C11+C12+C13+C14+C15+C16+C17+C18+C19+C20+C21+C22+C23+C24+C25+C26+C27+C28+C29)/COUNTA($B$6:$B$29) -> 0.00 | D30: =(D6+D7+D8+D9+D10+D11+D12+D13+D14+D15+D16+D17+D18+D19+D20+D21+D22+D23+D24+D25+D26+D27+D28+D29)/COUNTA($B$6:$B$29) -> 0.00 | E30: 0.00 | F30: 0.00 | G30: =(C30+E30)/2 -> 0.00 | H30: =(D30+F30)/2 -> 0.00 | I30: 0.00 | J30: 0.00 | K30: 0.00 | L30: 0.00 | M30: =(I30+K30)/2 -> 0.00 | N30: =(J30+L30)/2 -> 0.00
B32: ТЕАТРАЛИЗОВАННАЯ ДЕЯТЕЛЬНОСТЬ: | H32: КУЛЬТУРНО-ДОСУГОВАЯ ДЕЯТЕЛЬНОСТЬ:
B33: начало года | H33: начало года
C34: всего | D34: норма | E34: ниже нормы | F34: низкий | K34: всего | L34: норма | M34: ниже нормы | N34: низкий
B35: количество детей | C35: =COUNTA($B$6:$B$29) -> 3 | D35: =COUNTIF(G6:G29,">=3,8") -> 0 | E35: =COUNTIFS(G6:G29,"<3,7",G6:G29,">=2,3") -> 0 | F35: =COUNTIFS(G6:G29,"<2,2",G6:G29,">0") -> 0 | H35: количество детей | K35: =COUNTA(B6:B29) -> 3 | L35: =COUNTIF(M9:M29,">=3,8") -> 0 | M35: =COUNTIFS(M9:M29,"<3,7",M9:M29,">=2,3") -> 0 | N35: =COUNTIFS(M9:M29,"<2,2",M9:M29,">0") -> 0
B36: % | C36: 100 | D36: =D35*C36/C35 -> 0.00 | E36: =E35*C36/C35 -> 0.00 | F36: =F35*C36/C35 -> 0.00 | H36: % | K36: 100 | L36: =L35*K36/K35 -> 0.00 | M36: =M35*K36/K35 -> 0.00 | N36: =N35*K36/K35 -> 0.00
B37: конец года | H37: конец года
C38: всего | D38: норма | E38: ниже нормы | F38: низкий | K38: всего | L38: норма | M38: ниже нормы | N38: низкий
B39: количество детей | C39: =COUNTA(B5:B28) -> 3 | D39: =COUNTIF(H6:H29,">=3,8") -> 0 | E39: =COUNTIFS(H6:H29,"<3,7",H6:H29,">=2,3") -> 0 | F39: =COUNTIFS(H6:H29,"<2,2",H6:H29,">0") -> 0 | H39: количество детей | K39: =COUNTA(B6:B29) -> 3 | L39: =COUNTIF(N9:N29,">=3,8") -> 0 | M39: =COUNTIFS(N9:N29,"<3,7",N9:N29,">=2,3") -> 0 | N39: =COUNTIFS(N9:N29,"<2,2",N9:N29,">0") -> 0
B40: % | C40: 100 | D40: =D39*C40/C39 -> 0.00 | E40: =E39*C40/C39 -> 0.00 | F40: =F39*C40/C39 -> 0.00 | H40: % | K40: 100 | L40: =L39*K40/K39 -> 0.00 | M40: =M39*K40/K39 -> 0.00 | N40: =N39*K40/K39 -> 0.00

Sheet ИТОГ ХЭ
A1: Обобщение результатов педагогической диагностики по направлениям
A2: ОО «Художественно-эстетическое развитие»
A4: ОГЛАВЛЕНИЕ | B4: Приобщение к искусству | C4: Изобразительная деятельность | D4: Конструктивная деятельность | E4: Музыкальная деятельность | F4: Театрализованная деятельность | G4: Культурно - досуговая деятельность | H4: Средний балл/уровень
B5: 1 | C5: 2 | D5: 3 | E5: 4 | F5: 5 | G5: 6 | H5: ср.ур.
A6: начало | B6: ='ХЭ-1'!$K$32 -> 0.92 | C6: ='ХЭ-1'!$AC$32 -> 1.00 | D6: ='ХЭ-2'!N30 -> 0.00 | E6: ='ХЭ-3'!X30 -> 2.67 | F6: ='ХЭ-4'!G30 -> 0.00 | G6: ='ХЭ-4'!M30 -> 0.00 | H6: =(B6+C6+D6+E6+F6+G6)/6 -> 0.76
A7: конец | B7: ='ХЭ-1'!$L$32 -> 1.25 | C7: ='ХЭ-1'!$AD$32 -> 1.33 | D7: ='ХЭ-2'!O30 -> 0.00 | E7: ='ХЭ-3'!Y30 -> 3.67 | F7: ='ХЭ-4'!H30 -> 0.00 | G7: ='ХЭ-4'!N30 -> 0.00 | H7: =(B7+C7+D7+E7+F7+G7)/6 -> 1.04
A28: ВЫВОДЫ:
A29: Начало учебного года:
A37: Конец учебного года:

Sheet ФР
A1: Образовательная область «Физическое развитие»
A2: НАПРАВЛЕНИЕ I. ОСНОВНАЯ ГИМНАСТИКА. ПОДВИЖНЫЕ ИГРЫ. СПОРТИВНЫЕ УПРАЖНЕНИЯ | Y2: ОГЛАВЛЕНИЕ
A3: НАПРАВЛЕНИЕ 2. ФОРМИРОВАНИЕ ОСНОВ ЗДОРОВОГО ОБРАЗА ЖИЗНИ. АКТИВНЫЙ ОТДЫХ
A4: №п/п | B4: ФИ ребенка | C4: Умеет ходить и бегать, сохраняя равновесие, в разных направлениях по указанию взрослого | E4: Прыгает на двух и на одной ноге; наместе, продвигаясь вперед | G4: Энергично отталкивается в прыжках на двух ногах, прыгает в длину с места | I4: Организованно выполняет строевые упражнеия, находит свое место при перестроении | K4: Выполняет упражнения по показу | M4: Выполняет задания сообща, действует в общем для всех темпе | O4: Катает мяч в заданном направлении с расстояния, бросает мяч двумя руками от груди, из-за головы; ударяет мячом об пол, бросает вверх и ловит; метает предметы правой и левой руками | Q4: Соблюдает правила в подвижных играх | S4: среднее значение | U4: Стремится самостоятельно ухаживать за собой, союлюдает порядок и чистоту, ухаживает за своими вещами и игрушками | W4: Соблюдает правила безопасности в двигательной деятельности | Y4: Владеет простейшими навыками поведения во время еды, умывания | AA4: среднее значение
C6: н.г. | D6: к.г. | E6: н.г. | F6: к.г. | G6: н.г. | H6: к.г. | I6: н.г. | J6: к.г. | K6: н.г. | L6: к.г. | M6: н.г. | N6: к.г. | O6: н.г. | P6: к.г. | Q6: н.г. | R6: к.г. | S6: н.г. | T6: к.г. | U6: н.г. | V6: к.г. | W6: н.г. | X6: к.г. | Y6: н.г. | Z6: к.г. | AA6: н.г. | AB6: к.г.
A7: 1 | B7: Иванов | C7: 2 | D7: 3 | E7: 2 | F7: 3 | G7: 2 | H7: 3 | I7: 2 | J7: 3 | K7: 3 | L7: 4 | M7: 3 | N7: 4 | O7: 2 | P7: 4 | Q7: 3 | R7: 5 | S7: =(C7+E7+G7+I7+K7+M7+O7+Q7)/8 -> 2.4 | T7: =(D7+F7+H7+J7+L7+N7+P7+R7)/8 -> 3.6 | U7: 3 | V7: 4 | W7: 3 | X7: 4 | Y7: 3 | Z7: 4 | AA7: =(U7+W7+Y7)/3 -> 3.0 | AB7: =(V7+X7+Z7)/3 -> 4.0
A8: 2 | B8: Петров | C8: 3 | D8: 4 | E8: 2 | F8: 3 | G8: 2 | H8: 3 | I8: 2 | J8: 3 | K8: 2 | L8: 3 | M8: 2 | N8: 3 | O8: 2 | P8: 3 | Q8: 2 | R8: 3 | S8: =(C8+E8+G8+I8+K8+M8+O8+Q8)/8 -> 2.1 | T8: =(D8+F8+H8+J8+L8+N8+P8+R8)/8 -> 3.1 | U8: 2 | V8: 3 | W8: 2 | X8: 3 | Y8: 2 | Z8: 3 | AA8: =(U8+W8+Y8)/3 -> 2.0 | AB8: =(V8+X8+Z8)/3 -> 3.0
A9: 3 | B9: Сидоров | S9: 0.0 | T9: 0.0 | AA9: 0.0 | AB9: 0.0
A10: 4 | S10: 0.0 | T10: 0.0 | AA10: 0.0 | AB10: 0.0
A11: 5 | S11: 0.0 | T11: 0.0 | AA11: 0.0 | AB11: 0.0
A12: 6 | S12: 0.0 | T12: 0.0 | AA12: 0.0 | AB12: 0.0
A13: 7 | S13: 0.0 | T13: 0.0 | AA13: 0.0 | AB13: 0.0
A14: 8 | S14: 0.0 | T14: 0.0 | AA14: 0.0 | AB14: 0.0
A15: 9 | S15: 0.0 | T15: 0.0 | AA15: 0.0 | AB15: 0.0
A16: 10 | S16: 0.0 | T16: 0.0 | AA16: 0.0 | AB16: 0.0
A17: 11 | S17: 0.0 | T17: 0.0 | AA17: 0.0 | AB17: 0.0
A18: 12 | S18: 0.0 | T18: 0.0 | AA18: 0.0 | AB18: 0.0
A19: 13 | S19: 0.0 | T19: 0.0 | AA19: 0.0 | AB19: 0.0
A20: 14 | S20: 0.0 | T20: 0.0 | AA20: 0.0 | AB20: 0.0
A21: 15 | S21: 0.0 | T21: 0.0 | AA21: 0.0 | AB21: 0.0
A22: 16 | S22: 0.0 | T22: 0.0 | AA22: 0.0 | AB22: 0.0
A23: 17 | S23: 0.0 | T23: 0.0 | AA23: 0.0 | AB23: 0.0
A24: 18 | S24: 0.0 | T24: 0.0 | AA24: 0.0 | AB24: 0.0
A25: 19 | S25: 0.0 | T25: 0.0 | AA25: 0.0 | AB25: 0.0
A26: 20 | S26: 0.0 | T26: 0.0 | AA26: 0.0 | AB26: 0.0
A27: 21 | S27: 0.0 | T27: 0.0 | AA27: 0.0 | AB27: 0.0
A28: 22 | S28: 0.0 | T28: 0.0 | AA28: 0.0 | AB28: 0.0
A29: 23 | S29: 0.0 | T29: 0.0 | AA29: 0.0 | AB29: 0.0
A30: 24 | S30: 0.0 | T30: 0.0 | AA30: 0.0 | AB30: 0.0
B31: среднее значение: | C31: =(C7+C8+C9+C10+C11+C12+C13+C14+C15+C16+C17+C18+C19+C20+C21+C22+C23+C24+C25+C26+C27+C28+C29+C30)/COUNTA($B$7:$B$30) -> 1.7 | D31: 2.3 | E31: 1.3 | F31: 2.0 | G31: 1.3 | H31: 2.0 | I31: 1.3 | J31: 2.0 | K31: 1.7 | L31: 2.3 | M31: 1.7 | N31: 2.3 | O31: 1.3 | P31: 2.3 | Q31: 1.7 | R31: 2.7 | S31: 1.5 | T31: 2.3 | U31: =(U7+U8+U9+U10+U11+U12+U13+U14+U15+U16+U17+U18+U19+U20+U21+U22+U23+U24+U25+U26+U27+U28+U29+U30)/COUNTA($B$7:$B$30) -> 1.7 | V31: 2.3 | W31: =(W7+W8+W9+W10+W11+W12+W13+W14+W15+W16+W17+W18+W19+W20+W21+W22+W23+W24+W25+W26+W27+W28+W29+W30)/COUNTA($B$7:$B$30) -> 1.7 | X31: 2.3 | Y31: =(Y7+Y8+Y9+Y10+Y11+Y12+Y13+Y14+Y15+Y16+Y17+Y18+Y19+Y20+Y21+Y22+Y23+Y24+Y25+Y26+Y27+Y28+Y29+Y30)/COUNTA($B$7:$B$30) -> 1.7 | Z31: =(Z7+Z8+Z9+Z10+Z11+Z12+Z13+Z14+Z15+Z16+Z17+Z18+Z19+Z20+Z21+Z22+Z23+Z24+Z25+Z26+Z27+Z28+Z29+Z30)/COUNTA($B$7:$B$30) -> 2.3 | AA31: 1.7 | AB31: 2.3
B33: начало года
C34: всего | D34: норма | E34: ниже нормы | F34: низкий
B35: количество детей | C35: =COUNTA($B$7:$B$30) -> 3 | D35: =COUNTIF(S7:S30,">=3,8") -> 0 | E35: =COUNTIFS(S7:S30,"<3,7",S7:S30,">=2,3") -> 1 | F35: =COUNTIFS(S7:S30,"<2,2",S7:S30,">0") -> 1
D36: =COUNTIF(AA7:AA30,">=3,8") -> 0 | E36: =COUNTIFS(AA7:AA30,"<3,7",AA7:AA30,">=2,3") -> 1 | F36: =COUNTIFS(AA7:AA30,"<2,2",AA7:AA30,">0") -> 1
B37: % | C37: 100 | D37: =D35*C37/C35 -> 0 | E37: =E35*C37/C35 -> 33.3 | F37: =F35*C37/C35 -> 33.3 | G37: направление 1
D38: =D35*C37/C35 -> 0 | E38: =E35*C37/C35 -> 33.3 | F38: =F35*C37/C35 -> 33.3 | G38: направление2
B40: конец года
C41: всего | D41: норма | E41: ниже нормы | F41: низкий
B42: количество детей | C42: =COUNTA(B7:B30) -> 3 | D42: =COUNTIF(T7:T30,">=3,8") -> 0 | E42: =COUNTIFS(T7:T30,"<3,7",T7:T30,">=2,3") -> 2 | F42: =COUNTIFS(T7:T30,"<2,2",T7:T30,">0") -> 0
D43: =COUNTIF(AA14:AA37,">=3,8") -> 0 | E43: =COUNTIFS(AA14:AA37,"<3,7",AA14:AA37,">=2,3") -> 0 | F43: =COUNTIFS(AA14:AA37,"<2,2",AA14:AA37,">0") -> 1
B44: % | C44: 100 | D44: =D42*C44/C42 -> 0.0 | E44: =E42*C44/C42 -> 66.7 | F44: =F42*C44/C42 -> 0.0
D45: =D42*C44/C42 -> 0 | E45: =E42*C44/C42 -> 66.7 | F45: =F42*C44/C42 -> 0.0

Sheet ИТОГ ФР
A1: Обобщение результатов педагогической диагностики по направлениям
C2: ОО «Физическое развитие»
B4: ОГЛАВЛЕНИЕ | C4: Основная гимнастика; подвижные и спортивные игры, спортивные упражнения | D4: Формирование основ здорового образа жизни | E4: Средний балл/уровень
C5: 1 | D5: 2 | E5: ср.ур.
B6: начало | C6: =ФР!S31 -> 1.50 | D6: =ФР!AA31 -> 1.67 | E6: =(C6+D6)/2 -> 1.58
B7: конец | C7: =ФР!T31 -> 2.25 | D7: =ФР!AB31 -> 2.33 | E7: =(C7+D7)/2 -> 2.29
A26: ВЫВОДЫ:
A27: Начало учебного года:
A35: Конец учебного года:

Sheet ИТОГОВАЯ ПО ОО
B1: Обобщение результатов педагогической диагностики по всем образовательным областям
B2: на 202__/2___ учебный год
B4: ОГЛАВЛЕНИЕ | C4: Социально-­коммуникативное развитие | D4: Познавательное развитие | E4: Речевое развитие | F4: Художественно­эстетическое развитие | G4: Физическое развитие | H4: Средний балл/уровень
C5: СК | D5: ПР | E5: РР | F5: ХЭР | G5: ФР | H5: ср.ур.
B6: начало | C6: ='ИТОГ СК'!G5 -> 0.91 | D6: ='ИТОГ ПР'!F5 -> 1.45 | E6: ='ИТОГ РР'!H6 -> 1.29 | F6: ='ИТОГ ХЭ'!H6 -> 0.76 | G6: ='ИТОГ ФР'!$E$6 -> 1.58 | H6: =(C6+D6+E6+F6+G6)/5 -> 1.20
B7: конец | C7: ='ИТОГ СК'!G6 -> 1.31 | D7: ='ИТОГ ПР'!F6 -> 2.00 | E7: ='ИТОГ РР'!H7 -> 1.53 | F7: ='ИТОГ ХЭ'!H7 -> 1.04 | G7: ='ИТОГ ФР'!$E$7 -> 2.29 | H7: =(C7+D7+E7+F7+G7)/5 -> 1.63
B28: Основные выводы по результатам педагогической диагностики
A30: Педагогический процесс организован на ___________________________ уровне.
A31: Следует обратить внимание на трудности реализации образовательной(-ых) области(-ей) «_________ развитие» в следующих аспектах:
A32: 1.
A36: 2.
A40: 3.
A44: В индивидуальной помощи нуждаются следующие дети:
A45: 1. «Речевое развитие»:
A53: 2. «Познавательное развитие»:
A64: 3. «Социально-коммуникативное развитие»:
A75: 4. «Художественно-эстетическое развитие»:
A86: 5. «Физическое развитие»:
